Organisation Name (A),Department (B),Service Cat Label (C ),Purpose of Spend (D),Expenditure CIPFA Sub Group (E ),Supplier (F),Supplier Reference (G),Pay Date (H),Transaction Number (I),Net Amount (J),Grant to VCSE? (K),Charity Number (L),Card Transaction (M),Irrecoverable VAT (N)
Pendle Borough Council,Parks & Recreation Services,Transport Related Expense,Tprt : Repairs : General,3105,FST CONSUMABLES LIMITED,A0000004,29/09/2022,PCO0328758,154.33,N,,N,N
Pendle Borough Council,Parks & Recreation Services,Indirect Employee Expenses,Training,1211,APSE,A0000021,29/09/2022,PCO0328712,155,N,,N,N
Pendle Borough Council,Operational Services,Premises Related Expense,Bldgs : R & M : Day To Day,2001,BARNES JB LIMITED,A0000202,15/09/2022,OPS0328510,28.85,N,,N,N
Pendle Borough Council,Operational Services,Premises Related Expense,Bldgs : R & M : Day To Day,2001,BARNES JB LIMITED,A0000202,15/09/2022,OPS0328511,74.26,N,,N,N
Pendle Borough Council,Operational Services,Premises Related Expense,Bldgs : R & M : Day To Day,2001,BARNES JB LIMITED,A0000202,29/09/2022,OPS0328766,82.51,N,,N,N
Pendle Borough Council,Parks & Recreation Services,Premises Related Expense,Grounds : R & M : Day to Day : Routine,2101,BARNES JB LIMITED,A0000202,15/09/2022,PCO0328079,18.88,N,,N,N
Pendle Borough Council,Parks & Recreation Services,Premises Related Expense,Grounds : R & M : Day to Day : Routine,2101,BARNES JB LIMITED,A0000202,15/09/2022,PCO0328080,63.96,N,,N,N
Pendle Borough Council,Parks & Recreation Services,Premises Related Expense,Grounds : R & M : Day to Day : Routine,2101,BARNES JB LIMITED,A0000202,08/09/2022,PCO0328408,14,N,,N,N
Pendle Borough Council,Parks & Recreation Services,Transport Related Expense,Tprt : Repairs : General,3105,BARNES JB LIMITED,A0000202,01/09/2022,PCO0328274,52.41,N,,N,N
Pendle Borough Council,Parks & Recreation Services,Transport Related Expense,Tprt : Repairs : General,3105,BARNES JB LIMITED,A0000202,08/09/2022,PCO0328407,70.85,N,,N,N
Pendle Borough Council,Parks & Recreation Services,Supplies and Services,Other Expenses,4705,BARNES JB LIMITED,A0000202,01/09/2022,PCO4006599,-13.67,N,,N,N
Pendle Borough Council,Parks & Recreation Services,Supplies and Services,Other Expenses,4705,BARNES JB LIMITED,A0000202,01/09/2022,PCO0328273,6.24,N,,N,N
Pendle Borough Council,Parks & Recreation Services,Supplies and Services,Other Expenses,4705,BARNES JB LIMITED,A0000202,01/09/2022,PCO0328273,13.67,N,,N,N
Pendle Borough Council,Parks & Recreation Services,Premises Related Expense,Grounds : R & M : Day to Day : Routine,2101,BROXAP LIMITED,A0000236,29/09/2022,PCO0328714,1540,N,,N,N
Pendle Borough Council,Engineering & Special Projects,Supplies and Services,Miscellaneous : Other,4707,BLACKBURN/DARWEN BOROUGH COUNCIL,A0000381,29/09/2022,HED0328832,5772,N,,N,N
Pendle Borough Council,Parks & Recreation Services,Transport Related Expense,Diesel Oil,3202,BOC GASES LTD,A0000386,15/09/2022,PCO0328575,24.45,N,,N,N
Pendle Borough Council,Engineering & Special Projects,Capital Costs,Capital : Payments,CD14,CB EXCAVATORS LTD,A0000396,22/09/2022,HED0328702,34304,N,,N,N
Pendle Borough Council,Property Services,Premises Related Expense,Bldgs : R & M : Day To Day,2001,GEORGE BOOCOCK DECORATORS LTD,A0000427,15/09/2022,EST0328600,1785,N,,N,N
Pendle Borough Council,Parks & Recreation Services,Premises Related Expense,Bldgs : R & M : Day To Day,2001,BARROWFORD SAFE & LOCK & BB LOCKSMITHS,A0000510,08/09/2022,PCO0328409,11.68,N,,N,N
Pendle Borough Council,Parks & Recreation Services,Premises Related Expense,Bldgs : R & M : Day To Day,2001,BARROWFORD SAFE & LOCK & BB LOCKSMITHS,A0000510,08/09/2022,PCO0328409,7.5,N,,N,N
Pendle Borough Council,Environmental Health Services,Premises Related Expense,Bldgs : R & M : Abnormal,2002,MARTIN COLLINS JOINERY & GLAZING,A0000623,08/09/2022,ENV0328310,90,N,,N,N
Pendle Borough Council,Environmental Health Services,Premises Related Expense,Bldgs : R & M : Abnormal,2002,MARTIN COLLINS JOINERY & GLAZING,A0000623,08/09/2022,ENV0328311,180,N,,N,N
Pendle Borough Council,Chief Executives Policy Unit,Supplies and Services,Other Expenses,4705,MARTIN COLLINS JOINERY & GLAZING,A0000623,08/09/2022,COR0328316,54.5,N,,N,N
Pendle Borough Council,Engineering & Special Projects,Transfer Payments,Storage & Homelessness prevention,6104,CAVALIER TAXIS,A0000638,08/09/2022,HED0328414,45,N,,N,N
Pendle Borough Council,Engineering & Special Projects,Transfer Payments,Storage & Homelessness prevention,6104,CAVALIER TAXIS,A0000638,08/09/2022,HED0328366,200,N,,N,N
Pendle Borough Council,Parks & Recreation Services,Transport Related Expense,Tprt : Repairs : General,3105,CAL-COM SYSTEMS LTD,A0000703,15/09/2022,PCO0328403,65,N,,N,N
Pendle Borough Council,Property Services,Premises Related Expense,Bldgs : R & M : Day To Day,2001,J DRIVER LTD,A0000884,22/09/2022,EST0328711,447.5,N,,N,N
Pendle Borough Council,Property Services,Premises Related Expense,Bldgs : R & M : Day To Day,2001,J DRIVER LTD,A0000884,22/09/2022,EST0328711,1153.66,N,,N,N
Pendle Borough Council,Property Services,Premises Related Expense,Bldgs : R & M : Day To Day,2001,J DRIVER LTD,A0000884,22/09/2022,EST0328711,168,N,,N,N
Pendle Borough Council,Property Services,Premises Related Expense,Bldgs : R & M : Day To Day,2001,J DRIVER LTD,A0000884,22/09/2022,EST0328711,210,N,,N,N
Pendle Borough Council,Property Services,Premises Related Expense,Water & Sewerage,2501,J DRIVER LTD,A0000884,22/09/2022,EST0328711,506.54,N,,N,N
Pendle Borough Council,Parks & Recreation Services,Supplies and Services,Protective Clothing,4201,ENGINEERING & FOUNDRY SUPPLIES,A0001002,29/09/2022,PCO0328757,430.95,N,,N,N
Pendle Borough Council,Operational Services,,Stock : Purchases,PJ01,ENGINEERING & FOUNDRY SUPPLIES,A0001002,08/09/2022,OPS4006600,-11.25,N,,N,N
Pendle Borough Council,Operational Services,,Stock : Purchases,PJ01,ENGINEERING & FOUNDRY SUPPLIES,A0001002,15/09/2022,OPS4006603,-0.2,N,,N,N
Pendle Borough Council,Operational Services,,Stock : Purchases,PJ01,ENGINEERING & FOUNDRY SUPPLIES,A0001002,15/09/2022,OPS0328561,11.45,N,,N,N
Pendle Borough Council,Operational Services,,Stock : Purchases,PJ01,ENGINEERING & FOUNDRY SUPPLIES,A0001002,01/09/2022,OPS0328266,43.95,N,,N,N
Pendle Borough Council,Operational Services,,Stock : Purchases,PJ01,ENGINEERING & FOUNDRY SUPPLIES,A0001002,29/09/2022,OPS0328770,48.7,N,,N,N
Pendle Borough Council,Operational Services,,Stock : Purchases,PJ01,ENGINEERING & FOUNDRY SUPPLIES,A0001002,08/09/2022,OPS0328392,102,N,,N,N
Pendle Borough Council,Operational Services,,Stock : Purchases,pj01,ENGINEERING & FOUNDRY SUPPLIES,A0001002,29/09/2022,OPS0328741,335.92,N,,N,N
Pendle Borough Council,Operational Services,,Stock : Purchases,PJ01,ENGINEERING & FOUNDRY SUPPLIES,A0001002,01/09/2022,OPS0328265,612.66,N,,N,N
Pendle Borough Council,Engineering & Special Projects,Capital Costs,Capital : Payments,CD14,FORBES SOLICITORS,A0001117,22/09/2022,HED0328703,531,N,,N,N
Pendle Borough Council,Operational Services,Transport Related Expense,Tprt : Repairs : General,3105,FREIGHT TRANSPORT ASSOCIATION,A0001124,08/09/2022,OPS0328394,42,N,,N,N
Pendle Borough Council,Parks & Recreation Services,Supplies and Services,Protective Clothing,4201,FREIGHT TRANSPORT ASSOCIATION,A0001124,29/09/2022,PCO0328761,45.95,N,,N,N
Pendle Borough Council,Parks & Recreation Services,Transport Related Expense,Tprt : Repairs : General,3105,GIBSONS GARDEN MACHINERY LTD,A0001201,29/09/2022,PCO0328718,5.42,N,,N,N
Pendle Borough Council,Parks & Recreation Services,Transport Related Expense,Tprt : Repairs : General,3105,GIBSONS GARDEN MACHINERY LTD,A0001201,15/09/2022,PCO0328075,72.92,N,,N,N
Pendle Borough Council,Parks & Recreation Services,Transport Related Expense,Tprt : Repairs : General,3105,GIBSONS GARDEN MACHINERY LTD,A0001201,29/09/2022,PCO0328718,187.38,N,,N,N
Pendle Borough Council,Parks & Recreation Services,Transport Related Expense,Tprt : Repairs : General,3105,GIBSONS GARDEN MACHINERY LTD,A0001201,15/09/2022,PCO0328580,88.56,N,,N,N
Pendle Borough Council,Parks & Recreation Services,Transport Related Expense,Tprt : Repairs : General,3105,GIBSONS GARDEN MACHINERY LTD,A0001201,15/09/2022,PCO0328579,27.14,N,,N,N
Pendle Borough Council,Parks & Recreation Services,Transport Related Expense,Tprt : Repairs : General,3105,GIBSONS GARDEN MACHINERY LTD,A0001201,29/09/2022,PCO0328718,35.67,N,,N,N
Pendle Borough Council,Parks & Recreation Services,Supplies and Services,Expenditure : Materials,0002,JEWSON LIMITED,A0001323,15/09/2022,PCO0328531,107.36,N,,N,N
Pendle Borough Council,Parks & Recreation Services,Premises Related Expense,Grounds : R & M : Day to Day : Routine,2101,JEWSON LIMITED,A0001323,29/09/2022,PCO0328720,56.4,N,,N,N
Pendle Borough Council,Parks & Recreation Services,Premises Related Expense,Grounds : R & M : Day to Day : Routine,2101,JEWSON LIMITED,A0001323,29/09/2022,PCO0328719,84.06,N,,N,N
Pendle Borough Council,Parks & Recreation Services,Premises Related Expense,Bldgs : R & M : Day To Day,2001,J HARGREAVES,A0001359,08/09/2022,PCO0328412,25,N,,N,N
Pendle Borough Council,Operational Services,Premises Related Expense,Grounds : R & M : Day to Day : Routine,2101,LANLEE SUPPLIES LIMITED,A0001672,08/09/2022,OPS4006602,-5.42,N,,N,N
Pendle Borough Council,Parks & Recreation Services,Premises Related Expense,Grounds : R & M : Day to Day : Routine,2101,LANLEE SUPPLIES LIMITED,A0001672,01/09/2022,PCO0328281,15.64,N,,N,N
Pendle Borough Council,Parks & Recreation Services,Premises Related Expense,Grounds : R & M : Day to Day : Routine,2101,LANLEE SUPPLIES LIMITED,A0001672,01/09/2022,PCO0328281,16.27,N,,N,N
Pendle Borough Council,Parks & Recreation Services,Premises Related Expense,Grounds : R & M : Day to Day : Routine,2101,LANLEE SUPPLIES LIMITED,A0001672,08/09/2022,PCO0328404,256.93,N,,N,N
Pendle Borough Council,Parks & Recreation Services,Premises Related Expense,Grounds : R & M : Day to Day : Routine,2101,LANLEE SUPPLIES LIMITED,A0001672,15/09/2022,PCO0328076,204.34,N,,N,N
Pendle Borough Council,Parks & Recreation Services,Premises Related Expense,Grounds : R & M : Day to Day : Routine,2101,LANLEE SUPPLIES LIMITED,A0001672,01/09/2022,PCO0328267,408.67,N,,N,N
Pendle Borough Council,Parks & Recreation Services,Transport Related Expense,Tprt : Repairs : General,3105,DICK LEIGH,A0001675,29/09/2022,PCO0328716,23.29,N,,N,N
Pendle Borough Council,Parks & Recreation Services,Transport Related Expense,Tprt : Repairs : General,3105,DICK LEIGH,A0001675,29/09/2022,PCO0328715,28.27,N,,N,N
Pendle Borough Council,Parks & Recreation Services,Transport Related Expense,Tprt : Repairs : General,3105,DICK LEIGH,A0001675,15/09/2022,PCO0328577,46.75,N,,N,N
Pendle Borough Council,Parks & Recreation Services,Transport Related Expense,Tprt : Repairs : General,3105,DICK LEIGH,A0001675,01/09/2022,PCO0328275,47.55,N,,N,N
Pendle Borough Council,Parks & Recreation Services,Transport Related Expense,Tprt : Repairs : General,3105,DICK LEIGH,A0001675,15/09/2022,PCO0328576,98.46,N,,N,N
Pendle Borough Council,Parks & Recreation Services,Transport Related Expense,Tprt : Repairs : General,3105,DICK LEIGH,A0001675,15/09/2022,PCO0328577,100.31,N,,N,N
Pendle Borough Council,Parks & Recreation Services,Transport Related Expense,Tprt : Repairs : General,3105,DICK LEIGH,A0001675,15/09/2022,PCO0328576,161.37,N,,N,N
Pendle Borough Council,Parks & Recreation Services,Transport Related Expense,Tprt : Repairs : General,3105,DICK LEIGH,A0001675,01/09/2022,PCO0328276,278,N,,N,N
Pendle Borough Council,Parks & Recreation Services,Transport Related Expense,Tprt : Repairs : General,3105,DICK LEIGH,A0001675,15/09/2022,PCO0328576,227.4,N,,N,N
Pendle Borough Council,Parks & Recreation Services,Transport Related Expense,Tprt : Repairs : General,3105,DICK LEIGH,A0001675,29/09/2022,PCO0328717,109.03,N,,N,N
Pendle Borough Council,Parks & Recreation Services,Transport Related Expense,Tprt : Repairs : General,3105,DICK LEIGH,A0001675,29/09/2022,PCO0328716,206.04,N,,N,N
Pendle Borough Council,Parks & Recreation Services,Transport Related Expense,Tprt : Repairs : General,3105,DICK LEIGH,A0001675,15/09/2022,PCO0328577,46.75,N,,N,N
Pendle Borough Council,Parks & Recreation Services,Supplies and Services,Protective Clothing,4201,DICK LEIGH,A0001675,29/09/2022,PCO0328716,12.99,N,,N,N
Pendle Borough Council,Parks & Recreation Services,Supplies and Services,Protective Clothing,4201,DICK LEIGH,A0001675,01/09/2022,PCO0328277,34.1,N,,N,N
Pendle Borough Council,Operational Services,Premises Related Expense,Trade Refuse Charges,2602,LANCASHIRE COUNTY COUNCIL,A0001690,15/09/2022,OPS0328565,5175.74,N,,N,N
Pendle Borough Council,Operational Services,Premises Related Expense,Trade Refuse Charges,2602,LANCASHIRE COUNTY COUNCIL,A0001690,15/09/2022,OPS0328565,29605.5,N,,N,N
Pendle Borough Council,Operational Services,Premises Related Expense,Trade Refuse Charges,2602,LANCASHIRE COUNTY COUNCIL,A0001690,15/09/2022,OPS0328565,68684.76,N,,N,N
Pendle Borough Council,Engineering & Special Projects,Capital Costs,Capital : Payments,CD14,LANCASHIRE COUNTY COUNCIL,A0001690,22/09/2022,HED0328704,1650,N,,N,N
Pendle Borough Council,Engineering & Special Projects,Capital Costs,Capital : Payments,CD14,LANCASHIRE COUNTY COUNCIL,A0001690,01/09/2022,HED0328257,1495,N,,N,N
Pendle Borough Council,Environmental Health Services,Capital Costs,Ren Grant : 1996 Act,CH22,LANCASHIRE COUNTY COUNCIL,A0001690,08/09/2022,ENV0328379,3528,N,,N,N
Pendle Borough Council,Engineering & Special Projects,Capital Costs,Capital : Payments,CD14,MONK OF COLNE LTD,A0001828,29/09/2022,HED0328779,6385.61,N,,N,N
Pendle Borough Council,Operational Services,Premises Related Expense,Grounds : R & M : Day to Day : Routine,2101,JOHN MACADAM & SON (RESCUE) LTD,A0001846,08/09/2022,OPS0328389,120,N,,N,N
Pendle Borough Council,Operational Services,Premises Related Expense,Grounds : R & M : Day to Day : Routine,2101,JOHN MACADAM & SON (RESCUE) LTD,A0001846,01/09/2022,OPS0328263,290,N,,N,N
Pendle Borough Council,Operational Services,Premises Related Expense,Grounds : R & M : Day to Day : Routine,2101,JOHN MACADAM & SON (RESCUE) LTD,A0001846,01/09/2022,OPS0328264,290,N,,N,N
Pendle Borough Council,Property Services,Premises Related Expense,Water & Sewerage,2501,WATER PLUS LIMITED,A0001986,08/09/2022,EST0328417,112.92,N,,N,N
Pendle Borough Council,Property Services,Premises Related Expense,Water & Sewerage,2501,WATER PLUS LIMITED,A0001986,08/09/2022,EST0328430,38.26,N,,N,N
Pendle Borough Council,Property Services,Premises Related Expense,Water & Sewerage,2501,WATER PLUS LIMITED,A0001986,08/09/2022,EST0328418,46.91,N,,N,N
Pendle Borough Council,Property Services,Premises Related Expense,Water & Sewerage,2501,WATER PLUS LIMITED,A0001986,22/09/2022,EST0328706,193.64,N,,N,N
Pendle Borough Council,Property Services,Premises Related Expense,Water & Sewerage,2501,WATER PLUS LIMITED,A0001986,29/09/2022,EST0328791,20.61,N,,N,N
Pendle Borough Council,Property Services,Premises Related Expense,Water & Sewerage,2501,WATER PLUS LIMITED,A0001986,08/09/2022,EST0328428,72.95,N,,N,N
Pendle Borough Council,Property Services,Premises Related Expense,Water & Sewerage,2501,WATER PLUS LIMITED,A0001986,29/09/2022,EST0328795,439.3,N,,N,N
Pendle Borough Council,Property Services,Premises Related Expense,Water & Sewerage,2501,WATER PLUS LIMITED,A0001986,01/09/2022,EST0328251,40.81,N,,N,N
Pendle Borough Council,Property Services,Premises Related Expense,Water & Sewerage,2501,WATER PLUS LIMITED,A0001986,29/09/2022,EST0328799,40.81,N,,N,N
Pendle Borough Council,Property Services,Premises Related Expense,Water & Sewerage,2501,WATER PLUS LIMITED,A0001986,08/09/2022,EST0328429,17.68,N,,N,N
Pendle Borough Council,Property Services,Premises Related Expense,Water & Sewerage,2501,WATER PLUS LIMITED,A0001986,08/09/2022,EST0328431,22.39,N,,N,N
Pendle Borough Council,Property Services,Premises Related Expense,Water & Sewerage,2501,WATER PLUS LIMITED,A0001986,08/09/2022,EST0328416,8.58,N,,N,N
Pendle Borough Council,Property Services,Premises Related Expense,Water & Sewerage,2501,WATER PLUS LIMITED,A0001986,01/09/2022,EST0328252,75.24,N,,N,N
Pendle Borough Council,Property Services,Premises Related Expense,Water & Sewerage,2501,WATER PLUS LIMITED,A0001986,29/09/2022,EST0328802,75.24,N,,N,N
Pendle Borough Council,Property Services,Premises Related Expense,Water & Sewerage,2501,WATER PLUS LIMITED,A0001986,29/09/2022,EST4006604,-11.28,N,,N,N
Pendle Borough Council,Property Services,Premises Related Expense,Water & Sewerage,2501,WATER PLUS LIMITED,A0001986,29/09/2022,EST4006606,-11.28,N,,N,N
Pendle Borough Council,Property Services,Premises Related Expense,Water & Sewerage,2501,WATER PLUS LIMITED,A0001986,29/09/2022,EST4006605,-11,N,,N,N
Pendle Borough Council,Property Services,Premises Related Expense,Water & Sewerage,2501,WATER PLUS LIMITED,A0001986,29/09/2022,EST0328800,8.4,N,,N,N
Pendle Borough Council,Property Services,Premises Related Expense,Water & Sewerage,2501,WATER PLUS LIMITED,A0001986,01/09/2022,EST0328255,11.28,N,,N,N
Pendle Borough Council,Property Services,Premises Related Expense,Water & Sewerage,2501,WATER PLUS LIMITED,A0001986,29/09/2022,EST0328798,24.92,N,,N,N
Pendle Borough Council,Property Services,Premises Related Expense,Water & Sewerage,2501,WATER PLUS LIMITED,A0001986,29/09/2022,EST0328796,561.98,N,,N,N
Pendle Borough Council,Property Services,Premises Related Expense,Water & Sewerage,2501,WATER PLUS LIMITED,A0001986,29/09/2022,EST0328794,182.13,N,,N,N
Pendle Borough Council,Property Services,Premises Related Expense,Water & Sewerage,2501,WATER PLUS LIMITED,A0001986,29/09/2022,EST0328797,16.77,N,,N,N
Pendle Borough Council,Property Services,Premises Related Expense,Water & Sewerage,2501,WATER PLUS LIMITED,A0001986,01/09/2022,EST0328256,21.45,N,,N,N
Pendle Borough Council,Property Services,Premises Related Expense,Water & Sewerage,2501,WATER PLUS LIMITED,A0001986,01/09/2022,EST0328254,33.67,N,,N,N
Pendle Borough Council,Property Services,Premises Related Expense,Water & Sewerage,2501,WATER PLUS LIMITED,A0001986,29/09/2022,EST0328801,117.33,N,,N,N
Pendle Borough Council,Property Services,Premises Related Expense,Water & Sewerage,2501,WATER PLUS LIMITED,A0001986,22/09/2022,EST0328707,16.13,N,,N,N
Pendle Borough Council,Property Services,Premises Related Expense,Water & Sewerage,2501,WATER PLUS LIMITED,A0001986,08/09/2022,EST0328420,1173.58,N,,N,N
Pendle Borough Council,Property Services,Premises Related Expense,Water & Sewerage,2501,WATER PLUS LIMITED,A0001986,29/09/2022,EST0328792,196,N,,N,N
Pendle Borough Council,Parks & Recreation Services,Premises Related Expense,Cleaning Materials,2605,OPTION HYGIENE LIMITED,A0002063,15/09/2022,PCO0328078,148.92,N,,N,N
Pendle Borough Council,Parks & Recreation Services,Supplies and Services,Protective Clothing,4201,OPTION HYGIENE LIMITED,A0002063,01/09/2022,PCO0328272,5,N,,N,N
Pendle Borough Council,Democratic & Legal Services,Supplies and Services,Postages,4501,ROYAL MAIL GROUP LIMITED,A0002281,08/09/2022,DAL0328369,1.36,N,,N,N
Pendle Borough Council,Engineering & Special Projects,Supplies and Services,Postages,4501,ROYAL MAIL GROUP LIMITED,A0002281,29/09/2022,HED0328872,2.45,N,,N,N
Pendle Borough Council,Engineering & Special Projects,Supplies and Services,Postages,4501,ROYAL MAIL GROUP LIMITED,A0002281,15/09/2022,HED0328591,8.96,N,,N,N
Pendle Borough Council,Engineering & Special Projects,Supplies and Services,Postages,4501,ROYAL MAIL GROUP LIMITED,A0002281,15/09/2022,HED0328521,11.76,N,,N,N
Pendle Borough Council,Engineering & Special Projects,Supplies and Services,Postages,4501,ROYAL MAIL GROUP LIMITED,A0002281,29/09/2022,HED0328872,491.94,N,,N,N
Pendle Borough Council,Engineering & Special Projects,Supplies and Services,Postages,4501,ROYAL MAIL GROUP LIMITED,A0002281,15/09/2022,HED0328521,520.54,N,,N,N
Pendle Borough Council,Engineering & Special Projects,Supplies and Services,Postages,4501,ROYAL MAIL GROUP LIMITED,A0002281,15/09/2022,HED0328591,797.54,N,,N,N
Pendle Borough Council,Engineering & Special Projects,Supplies and Services,Postages,4501,ROYAL MAIL GROUP LIMITED,A0002281,29/09/2022,HED0328872,28.03,N,,N,N
Pendle Borough Council,Engineering & Special Projects,Supplies and Services,Postages,4501,ROYAL MAIL GROUP LIMITED,A0002281,15/09/2022,HED0328521,29.93,N,,N,N
Pendle Borough Council,Engineering & Special Projects,Supplies and Services,Postages,4501,ROYAL MAIL GROUP LIMITED,A0002281,15/09/2022,HED0328591,233.1,N,,N,N
Pendle Borough Council,Engineering & Special Projects,Supplies and Services,Postages,4501,ROYAL MAIL GROUP LIMITED,A0002281,15/09/2022,HED0328591,6.55,N,,N,N
Pendle Borough Council,Engineering & Special Projects,Supplies and Services,Postages,4501,ROYAL MAIL GROUP LIMITED,A0002281,15/09/2022,HED0328521,7.17,N,,N,N
Pendle Borough Council,Engineering & Special Projects,Supplies and Services,Postages,4501,ROYAL MAIL GROUP LIMITED,A0002281,29/09/2022,HED0328872,7.91,N,,N,N
Pendle Borough Council,Engineering & Special Projects,Supplies and Services,Postages,4501,ROYAL MAIL GROUP LIMITED,A0002281,15/09/2022,HED0328521,3.84,N,,N,N
Pendle Borough Council,Engineering & Special Projects,Supplies and Services,Postages,4501,ROYAL MAIL GROUP LIMITED,A0002281,29/09/2022,HED0328872,7.67,N,,N,N
Pendle Borough Council,Engineering & Special Projects,Supplies and Services,Postages,4501,ROYAL MAIL GROUP LIMITED,A0002281,15/09/2022,HED0328591,3.95,N,,N,N
Pendle Borough Council,Engineering & Special Projects,Supplies and Services,Postages,4501,ROYAL MAIL GROUP LIMITED,A0002281,15/09/2022,HED0328521,7.9,N,,N,N
Pendle Borough Council,Engineering & Special Projects,Supplies and Services,Postages,4501,ROYAL MAIL GROUP LIMITED,A0002281,15/09/2022,HED0328591,9.72,N,,N,N
Pendle Borough Council,Engineering & Special Projects,Supplies and Services,Postages,4501,ROYAL MAIL GROUP LIMITED,A0002281,29/09/2022,HED0328872,10.14,N,,N,N
Pendle Borough Council,Engineering & Special Projects,Supplies and Services,Postages,4501,ROYAL MAIL GROUP LIMITED,A0002281,29/09/2022,HED0328872,21.06,N,,N,N
Pendle Borough Council,Engineering & Special Projects,Supplies and Services,Postages,4501,ROYAL MAIL GROUP LIMITED,A0002281,15/09/2022,HED0328521,21.71,N,,N,N
Pendle Borough Council,Engineering & Special Projects,Supplies and Services,Postages,4501,ROYAL MAIL GROUP LIMITED,A0002281,15/09/2022,HED0328591,1.71,N,,N,N
Pendle Borough Council,Engineering & Special Projects,Supplies and Services,Postages,4501,ROYAL MAIL GROUP LIMITED,A0002281,15/09/2022,HED0328591,65.42,N,,N,N
Pendle Borough Council,Engineering & Special Projects,Supplies and Services,Postages,4501,ROYAL MAIL GROUP LIMITED,A0002281,15/09/2022,HED0328521,71.82,N,,N,N
Pendle Borough Council,Engineering & Special Projects,Supplies and Services,Postages,4501,ROYAL MAIL GROUP LIMITED,A0002281,29/09/2022,HED0328872,78.81,N,,N,N
Pendle Borough Council,Engineering & Special Projects,Supplies and Services,Postages,4501,ROYAL MAIL GROUP LIMITED,A0002281,15/09/2022,HED0328591,108.6,N,,N,N
Pendle Borough Council,Engineering & Special Projects,Supplies and Services,Postages,4501,ROYAL MAIL GROUP LIMITED,A0002281,15/09/2022,HED0328521,125.27,N,,N,N
Pendle Borough Council,Engineering & Special Projects,Supplies and Services,Postages,4501,ROYAL MAIL GROUP LIMITED,A0002281,29/09/2022,HED0328872,188.18,N,,N,N
Pendle Borough Council,Engineering & Special Projects,Supplies and Services,Postages,4501,ROYAL MAIL GROUP LIMITED,A0002281,15/09/2022,HED0328521,18.4,N,,N,N
Pendle Borough Council,Engineering & Special Projects,Supplies and Services,Postages,4501,ROYAL MAIL GROUP LIMITED,A0002281,29/09/2022,HED0328872,21.54,N,,N,N
Pendle Borough Council,Engineering & Special Projects,Supplies and Services,Postages,4501,ROYAL MAIL GROUP LIMITED,A0002281,15/09/2022,HED0328591,31.24,N,,N,N
Pendle Borough Council,Engineering & Special Projects,Supplies and Services,Postages,4501,ROYAL MAIL GROUP LIMITED,A0002281,15/09/2022,HED0328591,11.2,N,,N,N
Pendle Borough Council,Engineering & Special Projects,Supplies and Services,Postages,4501,ROYAL MAIL GROUP LIMITED,A0002281,15/09/2022,HED0328521,34.07,N,,N,N
Pendle Borough Council,Engineering & Special Projects,Supplies and Services,Postages,4501,ROYAL MAIL GROUP LIMITED,A0002281,29/09/2022,HED0328872,42.61,N,,N,N
Pendle Borough Council,Engineering & Special Projects,Supplies and Services,Postages,4501,ROYAL MAIL GROUP LIMITED,A0002281,15/09/2022,HED0328591,196.31,N,,N,N
Pendle Borough Council,Engineering & Special Projects,Supplies and Services,Postages,4501,ROYAL MAIL GROUP LIMITED,A0002281,29/09/2022,HED0328872,203.54,N,,N,N
Pendle Borough Council,Engineering & Special Projects,Supplies and Services,Postages,4501,ROYAL MAIL GROUP LIMITED,A0002281,15/09/2022,HED0328521,246.43,N,,N,N
Pendle Borough Council,Engineering & Special Projects,Supplies and Services,Postages,4501,ROYAL MAIL GROUP LIMITED,A0002281,15/09/2022,HED0328591,77.09,N,,N,N
Pendle Borough Council,Engineering & Special Projects,Supplies and Services,Postages,4501,ROYAL MAIL GROUP LIMITED,A0002281,15/09/2022,HED0328521,97.18,N,,N,N
Pendle Borough Council,Engineering & Special Projects,Supplies and Services,Postages,4501,ROYAL MAIL GROUP LIMITED,A0002281,29/09/2022,HED0328872,241.5,N,,N,N
Pendle Borough Council,Engineering & Special Projects,Supplies and Services,Other Expenses,4705,ROYAL MAIL GROUP LIMITED,A0002281,29/09/2022,HED0328872,135.01,N,,N,N
Pendle Borough Council,Operational Services,Agency Staff,Emp : Agency Wages,1004,STANLEY BROTHERS (TIPPERS) LTD,A0002422,15/09/2022,OPS0328563,540,N,,N,N
Pendle Borough Council,Operational Services,Transport Related Expense,Tprt : Annual Hire Charge,3601,STANLEY BROTHERS (TIPPERS) LTD,A0002422,15/09/2022,OPS0328562,2530,N,,N,N
Pendle Borough Council,Parks & Recreation Services,Transport Related Expense,Tprt : Repairs : General,3105,SPALDINGS (UK) LTD,A0002537,15/09/2022,PCO0328582,216.55,N,,N,N
Pendle Borough Council,Property Services,Premises Related Expense,Bldgs : R & M : Day To Day,2001,T & F STEEL DESIGNS LTD,A0002627,15/09/2022,EST0328620,25,N,,N,5
Pendle Borough Council,Property Services,Premises Related Expense,Bldgs : R & M : Day To Day,2001,T & F STEEL DESIGNS LTD,A0002627,15/09/2022,EST0328619,36,N,,N,N
Pendle Borough Council,Property Services,Premises Related Expense,Bldgs : R & M : Day To Day,2001,T & F STEEL DESIGNS LTD,A0002627,15/09/2022,EST0328619,60,N,,N,12
Pendle Borough Council,Property Services,Premises Related Expense,Bldgs : R & M : Day To Day,2001,T & F STEEL DESIGNS LTD,A0002627,29/09/2022,EST0328806,90,N,,N,N
Pendle Borough Council,Property Services,Premises Related Expense,Bldgs : R & M : Day To Day,2001,T & F STEEL DESIGNS LTD,A0002627,29/09/2022,EST0328806,170,N,,N,N
Pendle Borough Council,Property Services,Premises Related Expense,Bldgs : R & M : Day To Day,2001,T & F STEEL DESIGNS LTD,A0002627,15/09/2022,EST0328621,220,N,,N,N
Pendle Borough Council,Property Services,Premises Related Expense,Bldgs : R & M : Day To Day,2001,T & F STEEL DESIGNS LTD,A0002627,15/09/2022,EST0328621,410,N,,N,82
Pendle Borough Council,Property Services,Premises Related Expense,Bldgs : R & M : Day To Day,2001,T & F STEEL DESIGNS LTD,A0002627,29/09/2022,EST0328803,120,N,,N,N
Pendle Borough Council,Property Services,Premises Related Expense,Bldgs : R & M : Day To Day,2001,T & F STEEL DESIGNS LTD,A0002627,29/09/2022,EST0328803,530,N,,N,N
Pendle Borough Council,Parks & Recreation Services,Premises Related Expense,Grounds : R & M : Day to Day : Routine,2101,T & F STEEL DESIGNS LTD,A0002627,29/09/2022,PCO0328734,650,N,,N,N
Pendle Borough Council,Chief Executives Policy Unit,Supplies and Services,Publicity & advertisement,4704,TRISTAR PRINTERS LTD,A0002731,15/09/2022,COR0328590,40,N,,N,N
Pendle Borough Council,Operational Services,Agency Staff,Emp : Agency Wages,1004,DHRB LIMITED T/A DRIVER HIRE (45680),A0003556,01/09/2022,OPS0328110,426.57,N,,N,N
Pendle Borough Council,Operational Services,Agency Staff,Emp : Agency Wages,1004,DHRB LIMITED T/A DRIVER HIRE (45680),A0003556,15/09/2022,OPS0328568,564.89,N,,N,N
Pendle Borough Council,Operational Services,Agency Staff,Emp : Agency Wages,1004,DHRB LIMITED T/A DRIVER HIRE (45680),A0003556,01/09/2022,OPS0328111,645.47,N,,N,N
Pendle Borough Council,Operational Services,Agency Staff,Emp : Agency Wages,1004,DHRB LIMITED T/A DRIVER HIRE (45680),A0003556,15/09/2022,OPS0328569,714.59,N,,N,N
Pendle Borough Council,Operational Services,Agency Staff,Emp : Agency Wages,1004,DHRB LIMITED T/A DRIVER HIRE (45680),A0003556,15/09/2022,OPS0328567,741.56,N,,N,N
Pendle Borough Council,Operational Services,Agency Staff,Emp : Agency Wages,1004,DHRB LIMITED T/A DRIVER HIRE (45680),A0003556,29/09/2022,OPS0328769,1362.82,N,,N,N
Pendle Borough Council,Operational Services,Agency Staff,Emp : Agency Wages,1004,DHRB LIMITED T/A DRIVER HIRE (45680),A0003556,01/09/2022,OPS0328111,358.59,N,,N,N
Pendle Borough Council,Operational Services,Agency Staff,Emp : Agency Wages,1004,DHRB LIMITED T/A DRIVER HIRE (45680),A0003556,15/09/2022,OPS0328569,398.14,N,,N,N
Pendle Borough Council,Operational Services,Agency Staff,Emp : Agency Wages,1004,DHRB LIMITED T/A DRIVER HIRE (45680),A0003556,01/09/2022,OPS0328110,426.56,N,,N,N
Pendle Borough Council,Operational Services,Agency Staff,Emp : Agency Wages,1004,DHRB LIMITED T/A DRIVER HIRE (45680),A0003556,15/09/2022,OPS0328568,432.61,N,,N,N
Pendle Borough Council,Operational Services,Agency Staff,Emp : Agency Wages,1004,DHRB LIMITED T/A DRIVER HIRE (45680),A0003556,15/09/2022,OPS0328567,433.13,N,,N,N
Pendle Borough Council,Parks & Recreation Services,Premises Related Expense,Grounds : R & M : Day to Day : Routine,2101,WICKSTEED LEISURE LTD,A0004748,08/09/2022,PCO0328435,1262.83,N,,N,N
Pendle Borough Council,Parks & Recreation Services,Premises Related Expense,Grounds : R & M : Day to Day : Routine,2101,WICKSTEED LEISURE LTD,A0004748,01/09/2022,PCO0328304,1857.3,N,,N,N
Pendle Borough Council,Chief Executives Policy Unit,Supplies and Services,Other Expenses,4705,BUILDING BRIDGES PENDLE,A0005524,15/09/2022,COR0328465,2100,N,1144741,N,N
Pendle Borough Council,Parks & Recreation Services,Transport Related Expense,Diesel Oil,3202,CERTAS ENERGY UK T/A TOWNSON BROS,A0005683,01/09/2022,PCO0328248,3020.98,N,,N,N
Pendle Borough Council,Parks & Recreation Services,Transport Related Expense,Tyres,3204,CERTAS ENERGY UK T/A TOWNSON BROS,A0005683,29/09/2022,PCO0328755,2896.55,N,,N,N
Pendle Borough Council,Parks & Recreation Services,Transport Related Expense,Tprt : Repairs : General,3105,F G ROWLAND LIMITED,A0006489,15/09/2022,PCO0328578,1690,N,,N,N
Pendle Borough Council,Democratic & Legal Services,Indirect Employee Expenses,Staff Refreshments,1261,PHILIP SANDERSON,A0006611,08/09/2022,DAL0328367,20.23,N,,N,N
Pendle Borough Council,Democratic & Legal Services,Supplies and Services,Hospitality,4611,PHILIP SANDERSON,A0006611,08/09/2022,DAL0328367,20.23,N,,N,N
Pendle Borough Council,Chief Executives Policy Unit,Supplies and Services,Other Expenses,4705,COLNE OPEN DOOR CENTRE,A0009836,15/09/2022,COR0328463,2100,N,1121144,N,N
Pendle Borough Council,Financial Services,Supplies and Services,Other Expenses,4705,PENDLE LEISURE LIMITED,A0012961,29/09/2022,AAS0328867,553705,N,XR43029,N,N
Pendle Borough Council,Engineering & Special Projects,Supplies and Services,Subsidised Training,4721,PENDLE LEISURE LIMITED,A0012961,29/09/2022,HED0328824,1271.6,N,XR43029,N,N
Pendle Borough Council,Chief Executives Policy Unit,Supplies and Services,Subsidised Training,4721,PENDLE LEISURE LIMITED,A0012961,15/09/2022,COR0328464,2075,N,XR43029,N,N
Pendle Borough Council,Parks & Recreation Services,Agency Staff,Emp : Agency Wages,1004,LANDSCAPE ENGINEERING LTD,A0013135,15/09/2022,PCO0328535,3391.2,N,,N,N
Pendle Borough Council,Parks & Recreation Services,Agency Staff,Emp : Agency Wages,1004,LANDSCAPE ENGINEERING LTD,A0013135,15/09/2022,PCO0328534,5518.8,N,,N,N
Pendle Borough Council,Parks & Recreation Services,Supplies and Services,Sub-Contractors,4007,LANDSCAPE ENGINEERING LTD,A0013135,15/09/2022,PCO0328533,3402.16,N,,N,N
Pendle Borough Council,Parks & Recreation Services,Supplies and Services,Sub-Contractors,4007,LANDSCAPE ENGINEERING LTD,A0013135,15/09/2022,PCO0328532,5222.12,N,,N,N
Pendle Borough Council,Operational Services,Supplies and Services,Sub-Contractors,4007,ORCHARD RECYCLING SERVICE,A0015803,08/09/2022,OPS0328396,1709.4,N,,N,N
Pendle Borough Council,Operational Services,Supplies and Services,Sub-Contractors,4007,ORCHARD RECYCLING SERVICE,A0015803,01/09/2022,OPS0328238,2117.5,N,,N,N
Pendle Borough Council,Operational Services,Supplies and Services,Sub-Contractors,4007,ORCHARD RECYCLING SERVICE,A0015803,29/09/2022,OPS0328771,2125.2,N,,N,N
Pendle Borough Council,Operational Services,Supplies and Services,Sub-Contractors,4007,ORCHARD RECYCLING SERVICE,A0015803,15/09/2022,OPS0328553,2225.3,N,,N,N
Pendle Borough Council,Operational Services,Supplies and Services,Sub-Contractors,4007,ORCHARD RECYCLING SERVICE,A0015803,29/09/2022,OPS0328742,2479.4,N,,N,N
Pendle Borough Council,Engineering & Special Projects,Supplies and Services,LCC Levy (Admins Costs),4419,JACOBS,A0016294,29/09/2022,HED0328830,-310,N,,N,N
Pendle Borough Council,Engineering & Special Projects,Supplies and Services,LCC Levy (Admins Costs),4419,JACOBS,A0016294,29/09/2022,HED0328830,310,N,,N,N
Pendle Borough Council,Parks & Recreation Services,Transport Related Expense,Tprt : Repairs : General,3105,WALTON SUMMIT TRUCK  CENTRE LTD,A0020983,29/09/2022,PCO0328765,58.6,N,,N,N
Pendle Borough Council,Environmental Health Services,Capital Costs,Ren Grant : 1996 Act,CH22,STANNAH LIFT SERVICES LTD,A0021089,15/09/2022,ENV0328469,3625,N,,N,N
Pendle Borough Council,Engineering & Special Projects,Capital Costs,Ren Grant : 1996 Act,CH22,STANNAH LIFT SERVICES LTD,A0021089,29/09/2022,HED0328825,6537,N,,N,N
Pendle Borough Council,Operational Services,Supplies and Services,Sub-Contractors,4007,ASPEN VALLEY KENNELS & CATTERY,A0022106,15/09/2022,OPS0328566,860,N,,N,N
Pendle Borough Council,Operational Services,Supplies and Services,Other Expenses,4705,ASPEN VALLEY KENNELS & CATTERY,A0022106,15/09/2022,OPS0328566,867.6,N,,N,N
Pendle Borough Council,Engineering & Special Projects,,Paid in the Year,PD03,FARRER & CO,A0027034,22/09/2022,HED0328690,600,N,,N,N
Pendle Borough Council,Engineering & Special Projects,Premises Related Expense,Bldgs : R & M : Day To Day,2001,LITE,A0040032,15/09/2022,HED0328436,139,N,,N,N
Pendle Borough Council,Operational Services,Supplies and Services,EFM : Photocopiers,4001,CANON (UK) LIMITED,A0040400,01/09/2022,OPS0328245,765.55,N,,N,N
Pendle Borough Council,Operational Services,Supplies and Services,EFM : Photocopiers,4001,CANON (UK) LIMITED,A0040400,01/09/2022,OPS0328246,353.79,N,,N,N
Pendle Borough Council,Democratic & Legal Services,Supplies and Services,Printing & Stationery,4301,CIVICA ELECTION SERVICES,A0041321,08/09/2022,DAL0328368,533.08,N,,N,N
Pendle Borough Council,Democratic & Legal Services,Supplies and Services,Printing & Stationery,4301,CIVICA ELECTION SERVICES,A0041321,22/09/2022,DAL0328683,912.14,N,,N,N
Pendle Borough Council,Democratic & Legal Services,Supplies and Services,Printing & Stationery,4301,CIVICA ELECTION SERVICES,A0041321,22/09/2022,DAL0328682,2400.08,N,,N,N
Pendle Borough Council,Democratic & Legal Services,Supplies and Services,Postages,4501,CIVICA ELECTION SERVICES,A0041321,08/09/2022,DAL0328368,536.52,N,,N,N
Pendle Borough Council,Engineering & Special Projects,Capital Costs,Capital : Payments,CD14,D J LINGARD & ASSOCIATES LTD,A0042727,01/09/2022,HED0328259,2160,N,,N,N
Pendle Borough Council,Engineering & Special Projects,Capital Costs,Capital : Payments,CD14,D J LINGARD & ASSOCIATES LTD,A0042727,01/09/2022,HED0328258,960,N,,N,N
Pendle Borough Council,Engineering & Special Projects,Capital Costs,Ren Grant : 1996 Act,CH22,D J LINGARD & ASSOCIATES LTD,A0042727,01/09/2022,HED0328214,120,N,,N,N
Pendle Borough Council,Financial Services,Indirect Employee Expenses,Water Supply,1262,WATER SMART (NW) LIMITED,A0042729,15/09/2022,AAS0328650,1074,N,,N,N
Pendle Borough Council,Parks & Recreation Services,Premises Related Expense,Grounds : R & M : Day to Day : Routine,2101,C & R WALNE ENGRAVERS,A0042734,15/09/2022,PCO4006596,-36,N,,N,N
Pendle Borough Council,Parks & Recreation Services,Premises Related Expense,Grounds : R & M : Day to Day : Routine,2101,C & R WALNE ENGRAVERS,A0042734,29/09/2022,PCO0328756,67.5,N,,N,N
Pendle Borough Council,Parks & Recreation Services,Premises Related Expense,Grounds : R & M : Day to Day : Routine,2101,C & R WALNE ENGRAVERS,A0042734,15/09/2022,PCO0328528,126,N,,N,N
Pendle Borough Council,Parks & Recreation Services,Transport Related Expense,Tprt : Repairs : General,3105, J RUSHTON,A0043864,15/09/2022,PCO0328077,140,N,,N,N
Pendle Borough Council,Engineering & Special Projects,Supplies and Services,Mayoral Expenses,4614,FENCE GATE LTD,A0043865,01/09/2022,HED0328243,2104.17,N,,N,N
Pendle Borough Council,Engineering & Special Projects,Supplies and Services,Other Expenses,4705,FENCE GATE LTD,A0043865,01/09/2022,HED0328242,500,N,,N,N
Pendle Borough Council,Parks & Recreation Services,Premises Related Expense,Grounds : R & M : Day to Day : Routine,2101,S M SHEPHERD BUILDING CONTRACTORS,A0044037,08/09/2022,PCO0328434,50,N,,N,10
Pendle Borough Council,Operational Services,Supplies and Services,Sub-Contractors,4007,S M SHEPHERD BUILDING CONTRACTORS,A0044037,15/09/2022,OPS0328512,160,N,,N,N
Pendle Borough Council,Operational Services,Supplies and Services,Sub-Contractors,4007,S M SHEPHERD BUILDING CONTRACTORS,A0044037,15/09/2022,OPS0328512,160,N,,N,32
Pendle Borough Council,Operational Services,Supplies and Services,Sub-Contractors,4007,S M SHEPHERD BUILDING CONTRACTORS,A0044037,15/09/2022,OPS0328513,180,N,,N,N
Pendle Borough Council,Operational Services,Supplies and Services,Sub-Contractors,4007,S M SHEPHERD BUILDING CONTRACTORS,A0044037,15/09/2022,OPS0328513,180,N,,N,36
Pendle Borough Council,Operational Services,Agency Costs,Refuse Collection DLO,5005,S M SHEPHERD BUILDING CONTRACTORS,A0044037,15/09/2022,OPS0328564,50,N,,N,N
Pendle Borough Council,Operational Services,Agency Costs,Refuse Collection DLO,5005,S M SHEPHERD BUILDING CONTRACTORS,A0044037,15/09/2022,OPS0328564,50,N,,N,10
Pendle Borough Council,Engineering & Special Projects,Supplies and Services,Subsidised Training,4721,BODIES IN MOTION,A0045266,29/09/2022,HED0328818,1344,N,,N,N
Pendle Borough Council,Engineering & Special Projects,Supplies and Services,Subsidised Training,4721,BODIES IN MOTION,A0045266,29/09/2022,HED0328819,3800,N,,N,N
Pendle Borough Council,Engineering & Special Projects,Supplies and Services,Other Expenses,4705,MARKETING LANCASHIRE LIMITED,A0045273,15/09/2022,HED0328520,2500,N,,N,N
Pendle Borough Council,Engineering & Special Projects,Supplies and Services,Subscriptions & Donations,4706,MARKETING LANCASHIRE LIMITED,A0045273,15/09/2022,HED0328520,3900,N,,N,N
Pendle Borough Council,Parks & Recreation Services,Transport Related Expense,Tprt : Repairs : General,3105,BOWCOM,A0045454,15/09/2022,PCO0328527,1000,N,,N,N
Pendle Borough Council,Engineering & Special Projects,Supplies and Services,Subscriptions & Donations,4706,BLACKPOOL BOROUGH  COUNCIL,A0047029,29/09/2022,HED0328746,25,N,,N,N
Pendle Borough Council,Parks & Recreation Services,Premises Related Expense,Grounds : R & M : Day to Day : Routine,2101,LOOP PUBLISHING LTD,A0047429,29/09/2022,PCO0328723,125,N,,N,N
Pendle Borough Council,Parks & Recreation Services,Transport Related Expense,Tprt : Repairs : General,3105,CAMPEY TURF CARE SYSTEMS,A0050717,29/09/2022,PCO0328754,1552.74,N,,N,N
Pendle Borough Council,Parks & Recreation Services,Transport Related Expense,Tprt : Repairs : General,3105,ROSSENDALE VULCANISING (SALES LTD),A0051239,29/09/2022,PCO0328732,25,N,,N,N
Pendle Borough Council,Parks & Recreation Services,Transport Related Expense,Tyres,3204,ROSSENDALE VULCANISING (SALES LTD),A0051239,15/09/2022,PCO0328581,172,N,,N,N
Pendle Borough Council,Financial Services,Premises Related Expense,Rents,2301,LIBERATA UK LTD,A0051618,08/09/2022,AAS0328449,502.33,N,,N,N
Pendle Borough Council,Financial Services,Supplies and Services,Computer Charges,4509,LIBERATA UK LTD,A0051618,08/09/2022,AAS0328451,140.96,N,,N,N
Pendle Borough Council,Financial Services,Agency Costs,Liberata,5301,LIBERATA UK LTD,A0051618,29/09/2022,AAS0328864,1276,N,,N,N
Pendle Borough Council,Financial Services,Agency Costs,Liberata,5301,LIBERATA UK LTD,A0051618,29/09/2022,AAS0328865,2031,N,,N,N
Pendle Borough Council,Financial Services,Agency Costs,Liberata,5301,LIBERATA UK LTD,A0051618,29/09/2022,AAS0328870,2075,N,,N,N
Pendle Borough Council,Financial Services,Agency Costs,Liberata,5301,LIBERATA UK LTD,A0051618,29/09/2022,AAS0328863,4804,N,,N,N
Pendle Borough Council,Financial Services,Agency Costs,Liberata,5301,LIBERATA UK LTD,A0051618,08/09/2022,AAS0328450,1100,N,,N,N
Pendle Borough Council,Financial Services,Agency Costs,Liberata,5301,LIBERATA UK LTD,A0051618,29/09/2022,AAS0328862,3926.09,N,,N,N
Pendle Borough Council,Financial Services,Agency Costs,#N/A,5303,LIBERATA UK LTD,A0051618,15/09/2022,AAS0328880,6191.67,N,,N,N
Pendle Borough Council,Financial Services,Agency Costs,#N/A,5303,LIBERATA UK LTD,A0051618,15/09/2022,AAS0328880,34579.69,N,,N,N
Pendle Borough Council,Financial Services,Agency Costs,#N/A,5303,LIBERATA UK LTD,A0051618,15/09/2022,AAS0328880,30648.85,N,,N,N
Pendle Borough Council,Financial Services,Agency Costs,#N/A,5303,LIBERATA UK LTD,A0051618,15/09/2022,AAS0328880,88073.22,N,,N,N
Pendle Borough Council,Financial Services,Agency Costs,#N/A,5303,LIBERATA UK LTD,A0051618,15/09/2022,AAS0328880,57954.45,N,,N,N
Pendle Borough Council,Financial Services,Agency Costs,#N/A,5303,LIBERATA UK LTD,A0051618,15/09/2022,AAS0328880,89980.74,N,,N,N
Pendle Borough Council,Financial Services,Agency Costs,#N/A,5303,LIBERATA UK LTD,A0051618,15/09/2022,AAS0328880,118452.66,N,,N,N
Pendle Borough Council,Financial Services,Capital Costs,Capital : Salaries,CD13,LIBERATA UK LTD,A0051618,29/09/2022,AAS0328861,2200,N,,N,N
Pendle Borough Council,Financial Services,Capital Costs,Capital : Salaries,cd13,LIBERATA UK LTD,A0051618,29/09/2022,AAS0328860,14925.26,N,,N,N
Pendle Borough Council,Engineering & Special Projects,Capital Costs,Capital: Design Fees,CD53,LIBERATA UK LTD,A0051618,15/09/2022,HED0328476,3947.83,N,,N,N
Pendle Borough Council,Human Resources,Supplies and Services,Other Expenses,4705,FIDELITI LIMITED,A0052058,22/09/2022,PER0328693,12.15,N,,N,N
Pendle Borough Council,Operational Services,Capital Costs,Capital : Payments,CD14,MGB PLASTICS LIMITED,A0052535,15/09/2022,OPS0328555,4100,N,,N,N
Pendle Borough Council,Operational Services,Capital Costs,Capital : Payments,CD14,MGB PLASTICS LIMITED,A0052535,15/09/2022,OPS0328554,7840,N,,N,N
Pendle Borough Council,Environmental Health Services,Premises Related Expense,Bldgs : R & M : Abnormal,2002,WHATMORE LTD,A0054380,08/09/2022,ENV0328309,648.2,N,,N,N
Pendle Borough Council,Engineering & Special Projects,Capital Costs,Ren Grant : 1996 Act,CH22,WHATMORE LTD,A0054380,29/09/2022,HED0328814,6406,N,,N,N
Pendle Borough Council,Parks & Recreation Services,Premises Related Expense,Grounds : R & M : Day to Day : Routine,2101,JOHNSTON CONTRACTORS,A0056313,01/09/2022,PCO0328278,360,N,,N,72
Pendle Borough Council,Parks & Recreation Services,Premises Related Expense,Grounds : R & M : Day to Day : Routine,2101,A BINNS & CO,A0057121,15/09/2022,PCO0328525,600,N,,N,N
Pendle Borough Council,Parks & Recreation Services,Premises Related Expense,Grounds : R & M : Day to Day : Routine,2101,A BINNS & CO,A0057121,01/09/2022,PCO0328279,280,N,,N,N
Pendle Borough Council,Parks & Recreation Services,Premises Related Expense,Grounds : R & M : Day to Day : Routine,2101,A BINNS & CO,A0057121,01/09/2022,PCO0328279,370,N,,N,N
Pendle Borough Council,Financial Services,Supplies and Services,Seminars etc All Costs,4601,CIVICA UK LIMITED,A0057596,29/09/2022,AAS0328868,295,N,,N,N
Pendle Borough Council,Operational Services,Premises Related Expense,Bldgs : R & M : Day To Day,2001,CHUBB FIRE & SECURITY LTD,A0057603,08/09/2022,OPS0328393,47.58,N,,N,N
Pendle Borough Council,Operational Services,Premises Related Expense,Bldgs : R & M : Day To Day,2001,P LEE WASTE OIL LIMTED,A0058412,08/09/2022,OPS0328405,820,N,,N,N
Pendle Borough Council,Operational Services,Transport Related Expense,Tprt : Repairs : General,3105,UNITED UTILITIES,A0059246,08/09/2022,OPS0328406,23.45,N,,N,N
Pendle Borough Council,Operational Services,Transport Related Expense,Tprt : Repairs : General,3105,UNITED UTILITIES,A0059246,15/09/2022,OPS0328516,23.45,N,,N,N
Pendle Borough Council,Operational Services,Transport Related Expense,Tprt : Repairs : General,3105,UNITED UTILITIES,A0059246,08/09/2022,OPS0328406,23.45,N,,N,N
Pendle Borough Council,Operational Services,Transport Related Expense,Tprt : Repairs : General,3105,UNITED UTILITIES,A0059246,15/09/2022,OPS0328516,23.45,N,,N,N
Pendle Borough Council,Engineering & Special Projects,Agency Costs,Lancashire C C,5102,NSL LIMITED,A0059256,15/09/2022,HED0328475,2219.58,N,,N,N
Pendle Borough Council,Engineering & Special Projects,Supplies and Services,Adverts : Statutory Notice,4702,NATIONAL WORLD PUBLISHING LTD,A0059640,29/09/2022,HED0328813,243,N,,N,N
Pendle Borough Council,Planning & Building Control,Supplies and Services,Adverts : Statutory Notice,4702,NATIONAL WORLD PUBLISHING LTD,A0059640,15/09/2022,PBC0328504,243,N,,N,N
Pendle Borough Council,Engineering & Special Projects,Agency Costs,Lancashire C C,5102,NATIONAL WORLD PUBLISHING LTD,A0059640,15/09/2022,HED0328519,218.7,N,,N,N
Pendle Borough Council,Planning & Building Control,,Fees Income : Non-VATable,9302,NATIONAL WORLD PUBLISHING LTD,A0059640,15/09/2022,PBC0328505,194.4,N,,N,N
Pendle Borough Council,Engineering & Special Projects,Transfer Payments,Accommodation ,6103,HILL VIEW (PRIVATE) HOTEL,A0059754,08/09/2022,HED0328363,14790,N,,N,N
Pendle Borough Council,Property Services,Premises Related Expense,Bldgs : R & M : Day To Day,2001,MAXIGIENE ENVIRONMENTAL SERVICES LTD,A0060911,15/09/2022,EST0328603,25,N,,N,N
Pendle Borough Council,Property Services,Premises Related Expense,Bldgs : R & M : Day To Day,2001,MAXIGIENE ENVIRONMENTAL SERVICES LTD,A0060911,15/09/2022,EST0328602,35,N,,N,N
Pendle Borough Council,Property Services,Supplies and Services,Other Expenses,4705,MAXIGIENE ENVIRONMENTAL SERVICES LTD,A0060911,15/09/2022,EST0328601,745,N,,N,N
Pendle Borough Council,Operational Services,Supplies and Services,EFM Materials,4004,CONTAINER CARE SOLUTIONS LIMITED,A0061112,29/09/2022,OPS0328767,690,N,,N,N
Pendle Borough Council,Engineering & Special Projects,Capital Costs,Capital : Payments,CD14,LANESHAWBRIDGE PARISH COUNCIL,A0062284,15/09/2022,HED0328517,595,N,,N,N
Pendle Borough Council,Parks & Recreation Services,Premises Related Expense,Grounds : R & M : Day to Day : Routine,2101,ANTHONY WARING JOINERY,A0062729,15/09/2022,PCO0328526,905,N,,N,N
Pendle Borough Council,Democratic & Legal Services,Supplies and Services,Uniforms,4202,REDACT - PERSONAL DATA,A0062864,08/09/2022,DAL0328314,7.5,N,,N,N
Pendle Borough Council,Democratic & Legal Services,Supplies and Services,Uniforms,4202,REDACT - PERSONAL DATA,A0062864,15/09/2022,DAL0328557,10,N,,N,N
Pendle Borough Council,Human Resources,Supplies and Services,Legal Fees,4402,DONALD RACE AND NEWTON SOLICITORS,A0063871,29/09/2022,PER0328749,400,N,,N,N
Pendle Borough Council,Human Resources,Transport Related Expense,Car Allows : Offs : Lease Exps,3806,ARNOLD CLARK VEHICLE MANAGEMENT,A0065524,22/09/2022,PER0328692,558.36,N,,N,N
Pendle Borough Council,Human Resources,Transport Related Expense,Car Allows : Offs : Lease Exps,3806,ARNOLD CLARK VEHICLE MANAGEMENT,A0065524,22/09/2022,PER0328692,1766.64,N,,N,N
Pendle Borough Council,Human Resources,Transport Related Expense,Car Allows : Offs : Lease Exps,3806,ARNOLD CLARK VEHICLE MANAGEMENT,A0065524,22/09/2022,PER4006561,-237.33,N,,N,N
Pendle Borough Council,Human Resources,Transport Related Expense,Car Allows : Offs : Lease Exps,3806,ARNOLD CLARK VEHICLE MANAGEMENT,A0065524,22/09/2022,PER4006561,-227.9,N,,N,N
Pendle Borough Council,Environmental Health Services,Capital Costs,Ren Grant : 1996 Act,CH22,ATM CONSTRUCTION LTD,A0066308,08/09/2022,ENV0328371,1621.84,N,,N,N
Pendle Borough Council,Human Resources,Transport Related Expense,Tprt : Annual Hire Charge,3601,LEX AUTOLEASE LIMITED,A0066530,22/09/2022,PER0328695,343.04,N,,N,N
Pendle Borough Council,Property Services,Premises Related Expense,Bldgs : R & M : Day To Day,2001,SPEAKMAN CONTRACTORS LTD,A0066581,29/09/2022,EST0328807,896.5,N,,N,N
Pendle Borough Council,Property Services,Premises Related Expense,Bldgs : R & M : Day To Day,2001,SPEAKMAN CONTRACTORS LTD,A0066581,29/09/2022,EST0328808,1656.84,N,,N,N
Pendle Borough Council,Property Services,Premises Related Expense,Bldgs : R & M : Day To Day,2001,SPEAKMAN CONTRACTORS LTD,A0066581,15/09/2022,EST0328649,49,N,,N,N
Pendle Borough Council,Property Services,Premises Related Expense,Bldgs : R & M : Day To Day,2001,SPEAKMAN CONTRACTORS LTD,A0066581,15/09/2022,EST0328649,73.5,N,,N,N
Pendle Borough Council,Property Services,Capital Costs,Capital : Payments,cd14,SPEAKMAN CONTRACTORS LTD,A0066581,15/09/2022,EST0328649,65.39,N,,N,N
Pendle Borough Council,Property Services,Capital Costs,Capital : Payments,cd14,SPEAKMAN CONTRACTORS LTD,A0066581,15/09/2022,EST0328649,243.34,N,,N,N
Pendle Borough Council,Property Services,Capital Costs,Capital : Payments,cd14,SPEAKMAN CONTRACTORS LTD,A0066581,15/09/2022,EST0328649,427.88,N,,N,N
Pendle Borough Council,Property Services,Capital Costs,Capital : Payments,cd14,SPEAKMAN CONTRACTORS LTD,A0066581,15/09/2022,EST0328649,1194.53,N,,N,N
Pendle Borough Council,Property Services,Capital Costs,Capital : Payments,cd14,SPEAKMAN CONTRACTORS LTD,A0066581,15/09/2022,EST0328649,1633.96,N,,N,N
Pendle Borough Council,Property Services,Capital Costs,Capital: Construction: Conversion/Refu,CD57,SPEAKMAN CONTRACTORS LTD,A0066581,08/09/2022,EST0328422,23029,N,,N,N
Pendle Borough Council,Engineering & Special Projects,Premises Related Expense,Bldgs : R & M : Day To Day,2001,LIVESEY BUILDING MAINTENANCE CONTRACTORS,A0066865,29/09/2022,HED0328777,170,N,,N,N
Pendle Borough Council,Engineering & Special Projects,Premises Related Expense,Bldgs : R & M : Day To Day,2001,LIVESEY BUILDING MAINTENANCE CONTRACTORS,A0066865,29/09/2022,HED0328777,600,N,,N,N
Pendle Borough Council,Property Services,Premises Related Expense,Bldgs : R & M : Day To Day,2001,LIVESEY BUILDING MAINTENANCE CONTRACTORS,A0066865,29/09/2022,EST0328804,190,N,,N,N
Pendle Borough Council,Engineering & Special Projects,Premises Related Expense,Grounds : R & M : Day to Day : Routine,2101,LIVESEY BUILDING MAINTENANCE CONTRACTORS,A0066865,29/09/2022,HED0328775,5,N,,N,N
Pendle Borough Council,Engineering & Special Projects,Premises Related Expense,Grounds : R & M : Day to Day : Routine,2101,LIVESEY BUILDING MAINTENANCE CONTRACTORS,A0066865,29/09/2022,HED0328775,60,N,,N,N
Pendle Borough Council,Engineering & Special Projects,Premises Related Expense,Grounds : R & M : Day to Day : Routine,2101,LIVESEY BUILDING MAINTENANCE CONTRACTORS,A0066865,29/09/2022,HED0328776,5,N,,N,N
Pendle Borough Council,Engineering & Special Projects,Premises Related Expense,Grounds : R & M : Day to Day : Routine,2101,LIVESEY BUILDING MAINTENANCE CONTRACTORS,A0066865,29/09/2022,HED0328778,15,N,,N,N
Pendle Borough Council,Engineering & Special Projects,Premises Related Expense,Grounds : R & M : Day to Day : Routine,2101,LIVESEY BUILDING MAINTENANCE CONTRACTORS,A0066865,29/09/2022,HED0328776,60,N,,N,N
Pendle Borough Council,Engineering & Special Projects,Premises Related Expense,Grounds : R & M : Day to Day : Routine,2101,LIVESEY BUILDING MAINTENANCE CONTRACTORS,A0066865,29/09/2022,HED0328778,90,N,,N,N
Pendle Borough Council,Human Resources,Indirect Employee Expenses,Emp : Medical Expenses,1236,PEOPLE ASSET MANAGEMENT LIMITED,A0067613,01/09/2022,PER0328219,110,N,,N,N
Pendle Borough Council,Human Resources,Indirect Employee Expenses,Emp : Medical Expenses,1236,PEOPLE ASSET MANAGEMENT LIMITED,A0067613,15/09/2022,PER0328544,393.75,N,,N,N
Pendle Borough Council,Human Resources,Indirect Employee Expenses,Emp : Medical Expenses,1236,PEOPLE ASSET MANAGEMENT LIMITED,A0067613,29/09/2022,PER0328748,467.25,N,,N,N
Pendle Borough Council,Operational Services,Supplies and Services,EFM Materials,4004,LIMPET LABELS UK LIMITED,A0067671,15/09/2022,OPS0328508,120.26,N,,N,N
Pendle Borough Council,Operational Services,Supplies and Services,EFM Materials,4004,LIMPET LABELS UK LIMITED,A0067671,15/09/2022,OPS0328508,120.26,N,,N,N
Pendle Borough Council,Operational Services,Supplies and Services,EFM Materials,4004,LIMPET LABELS UK LIMITED,A0067671,15/09/2022,OPS0328507,121.88,N,,N,N
Pendle Borough Council,Operational Services,Supplies and Services,EFM Materials,4004,LIMPET LABELS UK LIMITED,A0067671,15/09/2022,OPS0328507,121.88,N,,N,N
Pendle Borough Council,Operational Services,Supplies and Services,Other Expenses,4705,LIMPET LABELS UK LIMITED,A0067671,15/09/2022,OPS0328509,288.1,N,,N,N
Pendle Borough Council,Operational Services,Supplies and Services,Other Expenses,4705,LIMPET LABELS UK LIMITED,A0067671,15/09/2022,OPS0328509,576.2,N,,N,N
Pendle Borough Council,Engineering & Special Projects,Supplies and Services,#N/A,4424,CHIPSIDE LTD,A0068587,15/09/2022,HED0328473,3.4,N,,N,N
Pendle Borough Council,Engineering & Special Projects,Supplies and Services,#N/A,4424,CHIPSIDE LTD,A0068587,15/09/2022,HED0328474,12.79,N,,N,N
Pendle Borough Council,Engineering & Special Projects,Supplies and Services,#N/A,4424,CHIPSIDE LTD,A0068587,29/09/2022,HED0328823,178.92,N,,N,N
Pendle Borough Council,Parks & Recreation Services,Premises Related Expense,Grounds : R & M : Day to Day : Routine,2101,M C & M A STEWART HAULAGE,A0068863,15/09/2022,PCO0328538,441.34,N,,N,N
Pendle Borough Council,Parks & Recreation Services,Premises Related Expense,Grounds : R & M : Day to Day : Routine,2101,M C & M A STEWART HAULAGE,A0068863,15/09/2022,PCO0328537,444,N,,N,N
Pendle Borough Council,Parks & Recreation Services,Premises Related Expense,Grounds : R & M : Day to Day : Routine,2101,M C & M A STEWART HAULAGE,A0068863,15/09/2022,PCO0328536,822.53,N,,N,N
Pendle Borough Council,Parks & Recreation Services,Supplies and Services,Expenditure : Materials,0002,SHERRIFF AMENITY - AGROVISTA UK LIMITED,A0068904,29/09/2022,PCO0328713,2042.8,N,,N,N
Pendle Borough Council,Financial Services,,#N/A,9030,THE KNOWLEDGE ACADEMY LIMITED,A0069645,08/09/2022,AAS0328452,1795,N,,N,N
Pendle Borough Council,Parks & Recreation Services,Transport Related Expense,Tprt : Repairs : General,3105,GUY MACHINERY LIMITED,A0070711,29/09/2022,PCO0328759,6.7,N,,N,N
Pendle Borough Council,Parks & Recreation Services,Transport Related Expense,Tprt : Repairs : General,3105,GUY MACHINERY LIMITED,A0070711,29/09/2022,PCO0328759,67.03,N,,N,N
Pendle Borough Council,Engineering & Special Projects,Supplies and Services,#N/A,4425,UNITED UTILITIES WATER PLC,A0072400,29/09/2022,HED0328826,259.23,N,,N,N
Pendle Borough Council,Environmental Health Services,Supplies and Services,#N/A,4425,UNITED UTILITIES WATER PLC,A0072400,08/09/2022,ENV0328308,440.39,N,,N,N
Pendle Borough Council,Operational Services,Supplies and Services,Sub-Contractors,4007,RENTOKIL INITIAL UK LIMITED,A0072816,15/09/2022,OPS0328514,178.3,N,,N,N
Pendle Borough Council,Operational Services,Supplies and Services,Sub-Contractors,4007,RENTOKIL INITIAL UK LIMITED,A0072816,15/09/2022,OPS0328560,5.24,N,,N,N
Pendle Borough Council,Operational Services,Supplies and Services,Sub-Contractors,4007,RENTOKIL INITIAL UK LIMITED,A0072816,15/09/2022,OPS0328514,26.88,N,,N,N
Pendle Borough Council,Parks & Recreation Services,Supplies and Services,Protective Clothing,4201,REACTEC LIMITED,A0072817,15/09/2022,PCO0328541,283.5,N,,N,N
Pendle Borough Council,Parks & Recreation Services,Premises Related Expense,Grounds : R & M : Day to Day : Routine,2101,FENLAND LEISURE PRODUCTS LIMITED,A0072950,01/09/2022,PCO0328271,352,N,,N,N
Pendle Borough Council,Human Resources,Indirect Employee Expenses,Long Service Awards,1235,REDACT - PERSONAL DATA,A0076811,29/09/2022,PER0328747,100,N,,N,N
Pendle Borough Council,Engineering & Special Projects,Supplies and Services,Reference Books Acts,4304,THOMSON REUTERS PROFESSIONAL UK LIMITED,A0077400,22/09/2022,HED0328689,1099,N,,N,N
Pendle Borough Council,Parks & Recreation Services,Premises Related Expense,Grounds : R & M : Day to Day : Routine,2101,GLASDON UK LIMITED,A0078667,08/09/2022,PCO0328411,1205.24,N,,N,N
Pendle Borough Council,Parks & Recreation Services,Supplies and Services,Expenditure : Materials,0002,GROUNDSMAN TOOLS LTD,A0079260,15/09/2022,PCO0328529,17.24,N,,N,N
Pendle Borough Council,Parks & Recreation Services,Supplies and Services,Expenditure : Materials,0002,GROUNDSMAN TOOLS LTD,A0079260,15/09/2022,PCO0328530,122.72,N,,N,N
Pendle Borough Council,Engineering & Special Projects,Supplies and Services,Subscriptions & Donations,4706,POSITIVE ACTION IN THE COMMUNITY,A0081553,29/09/2022,HED0328745,16000,N,1088536,N,N
Pendle Borough Council,Engineering & Special Projects,Supplies and Services,Other Expenses,4705,CALICO ENTERPRISE,A0082574,29/09/2022,HED0328773,32500,N,,N,N
Pendle Borough Council,Operational Services,Transport Related Expense,Diesel Oil,3202,28CRAGGS ENERGY LIMITED,A0083617,29/09/2022,OPS0328768,4586.76,N,,N,N
Pendle Borough Council,Financial Services,Support Services,District Audit Fees,7202,GRANT THORNTON UK LLP,A0084044,29/09/2022,AAS0328869,8571.25,N,,N,N
Pendle Borough Council,Financial Services,Supplies and Services,Allpay,4422,ALLPAY LIMITED,A0084372,08/09/2022,AAS0328446,10,N,,N,N
Pendle Borough Council,Financial Services,Supplies and Services,Allpay,4422,ALLPAY LIMITED,A0084372,08/09/2022,AAS0328445,11.34,N,,N,N
Pendle Borough Council,Financial Services,Supplies and Services,Allpay,4422,ALLPAY LIMITED,A0084372,08/09/2022,AAS0328442,18.28,N,,N,N
Pendle Borough Council,Financial Services,Supplies and Services,Allpay,4422,ALLPAY LIMITED,A0084372,08/09/2022,AAS0328443,23.87,N,,N,N
Pendle Borough Council,Financial Services,Supplies and Services,Allpay,4422,ALLPAY LIMITED,A0084372,08/09/2022,AAS0328447,60.75,N,,N,N
Pendle Borough Council,Financial Services,Supplies and Services,Allpay,4422,ALLPAY LIMITED,A0084372,08/09/2022,AAS0328444,1628.04,N,,N,N
Pendle Borough Council,Environmental Health Services,Capital Costs,Capital : Payments,CD14,ELITE PLUMBING,A0084584,08/09/2022,ENV0328375,380,N,,N,N
Pendle Borough Council,Engineering & Special Projects,Capital Costs,Ren Grant : 1996 Act,CH22,ELITE PLUMBING,A0084584,01/09/2022,HED0328241,7123,N,,N,N
Pendle Borough Council,Engineering & Special Projects,Premises Related Expense,Grounds : R & M : Day to Day : Routine,2101,KEVIN WILKINSON LANDSCAPES LTD,A0085660,15/09/2022,HED0328439,300,N,,N,N
Pendle Borough Council,Engineering & Special Projects,Premises Related Expense,Grounds : R & M : Day to Day : Routine,2101,KEVIN WILKINSON LANDSCAPES LTD,A0085660,15/09/2022,HED0328440,375,N,,N,N
Pendle Borough Council,Engineering & Special Projects,Premises Related Expense,Grounds : R & M : Day to Day : Routine,2101,MARCHBRIDGE BUILDERS LIMITED,A0087284,15/09/2022,HED0328587,212.58,N,,N,N
Pendle Borough Council,Engineering & Special Projects,Premises Related Expense,Grounds : R & M : Day to Day : Routine,2101,MARCHBRIDGE BUILDERS LIMITED,A0087284,15/09/2022,HED0328586,3374.42,N,,N,N
Pendle Borough Council,Engineering & Special Projects,Capital Costs,Capital : Payments,CD14,MARCHBRIDGE BUILDERS LIMITED,A0087284,15/09/2022,HED0328438,81376.64,N,,N,N
Pendle Borough Council,Engineering & Special Projects,Capital Costs,Capital : Payments,CD14,MARCHBRIDGE BUILDERS LIMITED,A0087284,29/09/2022,HED0328788,254787.92,N,,N,N
Pendle Borough Council,Engineering & Special Projects,Capital Costs,Capital : Payments,CD14,MARCHBRIDGE BUILDERS LIMITED,A0087284,15/09/2022,HED0328586,3250,N,,N,N
Pendle Borough Council,Financial Services,Premises Related Expense,Electricity,2203,EDF ENERGY,A0088932,05/09/2022,AAS0328887,35.3,N,,N,N
Pendle Borough Council,Financial Services,Premises Related Expense,Electricity,2203,EDF ENERGY,A0088932,05/09/2022,AAS0328887,48.99,N,,N,N
Pendle Borough Council,Financial Services,Premises Related Expense,Electricity,2203,EDF ENERGY,A0088932,05/09/2022,AAS0328887,32.59,N,,N,N
Pendle Borough Council,Financial Services,Premises Related Expense,Electricity,2203,EDF ENERGY,A0088932,05/09/2022,AAS0328887,100.2,N,,N,N
Pendle Borough Council,Financial Services,Premises Related Expense,Electricity,2203,EDF ENERGY,A0088932,05/09/2022,AAS0328887,164.99,N,,N,N
Pendle Borough Council,Financial Services,Premises Related Expense,Electricity,2203,EDF ENERGY,A0088932,05/09/2022,AAS0328887,190.58,N,,N,N
Pendle Borough Council,Financial Services,Premises Related Expense,Electricity,2203,EDF ENERGY,A0088932,05/09/2022,AAS0328887,101.55,N,,N,N
Pendle Borough Council,Financial Services,Premises Related Expense,Electricity,2203,EDF ENERGY,A0088932,05/09/2022,AAS0328887,114.29,N,,N,N
Pendle Borough Council,Financial Services,Premises Related Expense,Electricity,2203,EDF ENERGY,A0088932,05/09/2022,AAS0328887,27.79,N,,N,N
Pendle Borough Council,Financial Services,Premises Related Expense,Electricity,2203,EDF ENERGY,A0088932,05/09/2022,AAS0328887,402.86,N,,N,N
Pendle Borough Council,Financial Services,Premises Related Expense,Electricity,2203,EDF ENERGY,A0088932,05/09/2022,AAS0328887,36.8,N,,N,N
Pendle Borough Council,Financial Services,Premises Related Expense,Electricity,2203,EDF ENERGY,A0088932,05/09/2022,AAS0328887,36.55,N,,N,N
Pendle Borough Council,Financial Services,Premises Related Expense,Electricity,2203,EDF ENERGY,A0088932,05/09/2022,AAS0328887,36.05,N,,N,N
Pendle Borough Council,Financial Services,Premises Related Expense,Electricity,2203,EDF ENERGY,A0088932,05/09/2022,AAS0328887,29.34,N,,N,N
Pendle Borough Council,Financial Services,Premises Related Expense,Electricity,2203,EDF ENERGY,A0088932,05/09/2022,AAS0328887,43.31,N,,N,N
Pendle Borough Council,Financial Services,Premises Related Expense,Electricity,2203,EDF ENERGY,A0088932,05/09/2022,AAS0328887,151.07,N,,N,N
Pendle Borough Council,Financial Services,Premises Related Expense,Electricity,2203,EDF ENERGY,A0088932,05/09/2022,AAS0328887,214.5,N,,N,N
Pendle Borough Council,Financial Services,Premises Related Expense,Electricity,2203,EDF ENERGY,A0088932,05/09/2022,AAS0328887,23.36,N,,N,N
Pendle Borough Council,Financial Services,Premises Related Expense,Electricity,2203,EDF ENERGY,A0088932,05/09/2022,AAS0328887,171.01,N,,N,N
Pendle Borough Council,Financial Services,Premises Related Expense,Electricity,2203,EDF ENERGY,A0088932,05/09/2022,AAS0328887,34.06,N,,N,N
Pendle Borough Council,Financial Services,Premises Related Expense,Electricity,2203,EDF ENERGY,A0088932,05/09/2022,AAS0328887,54.25,N,,N,N
Pendle Borough Council,Financial Services,Premises Related Expense,Electricity,2203,EDF ENERGY,A0088932,05/09/2022,AAS0328887,544.66,N,,N,N
Pendle Borough Council,Financial Services,Premises Related Expense,Electricity,2203,EDF ENERGY,A0088932,05/09/2022,AAS0328887,1463.01,N,,N,N
Pendle Borough Council,Financial Services,Supplies and Services,Other Expenses,4705,EDF ENERGY,A0088932,05/09/2022,AAS0328887,22.39,N,,N,N
Pendle Borough Council,Financial Services,Supplies and Services,Other Expenses,4705,EDF ENERGY,A0088932,05/09/2022,AAS0328887,22.63,N,,N,N
Pendle Borough Council,Financial Services,Supplies and Services,Subscriptions & Donations,4706,INFORM CPI LIMITED,A0089895,08/09/2022,AAS0328448,517.5,N,,N,N
Pendle Borough Council,Financial Services,Supplies and Services,Subscriptions & Donations,4706,INFORM CPI LIMITED,A0089895,01/09/2022,AAS0328305,900,N,,N,N
Pendle Borough Council,Financial Services,Supplies and Services,Subscriptions & Donations,4706,INFORM CPI LIMITED,A0089895,01/09/2022,AAS0328306,10530,N,,N,N
Pendle Borough Council,Property Services,Premises Related Expense,Bldgs : R & M : Day To Day,2001,LIGHTNING CONSULTANTS (UK) LIMITED,A0089984,15/09/2022,EST0328593,490,N,,N,N
Pendle Borough Council,Engineering & Special Projects,Supplies and Services,Publicity & advertisement,4704,WE LOVE CREATIVE LIMITED,A0090098,15/09/2022,HED0328588,400,N,,N,N
Pendle Borough Council,Economic Development & Tourism,Supplies and Services,Publicity & advertisement,4704,WE LOVE CREATIVE LIMITED,A0090098,15/09/2022,REG0328550,400,N,,N,N
Pendle Borough Council,Engineering & Special Projects,,Deposits in Lieu of Bond,B669,REDACT - PERSONAL DATA,A0090126,29/09/2022,HED0328829,1000,N,,N,N
Pendle Borough Council,Parks & Recreation Services,Transport Related Expense,Tprt : Repairs : General,3105,LANDSCAPE SUPPLY COMPANY,A0090209,15/09/2022,PCO0328074,140.37,N,,N,N
Pendle Borough Council,Parks & Recreation Services,Supplies and Services,Protective Clothing,4201,LANDSCAPE SUPPLY COMPANY,A0090209,01/09/2022,PCO0328269,55.31,N,,N,N
Pendle Borough Council,Parks & Recreation Services,Supplies and Services,Protective Clothing,4201,LANDSCAPE SUPPLY COMPANY,A0090209,15/09/2022,PCO0328074,337.92,N,,N,N
Pendle Borough Council,Financial Services,Transport Related Expense,Diesel Oil,3202,FUELMATE LTD,A0090265,06/09/2022,AAS0328937,75.62,N,,N,N
Pendle Borough Council,Financial Services,Transport Related Expense,Diesel Oil,3202,FUELMATE LTD,A0090265,20/09/2022,AAS0328938,84.31,N,,N,N
Pendle Borough Council,Financial Services,Transport Related Expense,Diesel Oil,3202,FUELMATE LTD,A0090265,27/09/2022,AAS0328935,196.05,N,,N,N
Pendle Borough Council,Financial Services,Transport Related Expense,Diesel Oil,3202,FUELMATE LTD,A0090265,06/09/2022,AAS0328937,280.07,N,,N,N
Pendle Borough Council,Financial Services,Transport Related Expense,Diesel Oil,3202,FUELMATE LTD,A0090265,13/09/2022,AAS0328934,287.32,N,,N,N
Pendle Borough Council,Financial Services,Transport Related Expense,Diesel Oil,3202,FUELMATE LTD,A0090265,20/09/2022,AAS0328938,367.22,N,,N,N
Pendle Borough Council,Financial Services,Transport Related Expense,Diesel Oil,3202,FUELMATE LTD,A0090265,13/09/2022,AAS0328934,293.4,N,,N,N
Pendle Borough Council,Financial Services,Transport Related Expense,Diesel Oil,3202,FUELMATE LTD,A0090265,06/09/2022,AAS0328937,319.5,N,,N,N
Pendle Borough Council,Financial Services,Transport Related Expense,Diesel Oil,3202,FUELMATE LTD,A0090265,27/09/2022,AAS0328935,398.68,N,,N,N
Pendle Borough Council,Financial Services,Transport Related Expense,Diesel Oil,3202,FUELMATE LTD,A0090265,20/09/2022,AAS0328938,438.76,N,,N,N
Pendle Borough Council,Financial Services,Transport Related Expense,Diesel Oil,3202,FUELMATE LTD,A0090265,20/09/2022,AAS0328938,148.2,N,,N,N
Pendle Borough Council,Financial Services,Transport Related Expense,Diesel Oil,3202,FUELMATE LTD,A0090265,27/09/2022,AAS0328935,356.6,N,,N,N
Pendle Borough Council,Financial Services,Transport Related Expense,Diesel Oil,3202,FUELMATE LTD,A0090265,06/09/2022,AAS0328937,300.54,N,,N,N
Pendle Borough Council,Financial Services,Transport Related Expense,Diesel Oil,3202,FUELMATE LTD,A0090265,27/09/2022,AAS0328935,373.37,N,,N,N
Pendle Borough Council,Financial Services,Transport Related Expense,Diesel Oil,3202,FUELMATE LTD,A0090265,13/09/2022,AAS0328934,422.55,N,,N,N
Pendle Borough Council,Financial Services,Transport Related Expense,Diesel Oil,3202,FUELMATE LTD,A0090265,20/09/2022,AAS0328938,483.83,N,,N,N
Pendle Borough Council,Financial Services,Transport Related Expense,Diesel Oil,3202,FUELMATE LTD,A0090265,13/09/2022,AAS0328934,313.89,N,,N,N
Pendle Borough Council,Financial Services,Transport Related Expense,Diesel Oil,3202,FUELMATE LTD,A0090265,20/09/2022,AAS0328938,331.67,N,,N,N
Pendle Borough Council,Financial Services,Transport Related Expense,Diesel Oil,3202,FUELMATE LTD,A0090265,06/09/2022,AAS0328937,343.33,N,,N,N
Pendle Borough Council,Financial Services,Transport Related Expense,Diesel Oil,3202,FUELMATE LTD,A0090265,27/09/2022,AAS0328935,364.37,N,,N,N
Pendle Borough Council,Financial Services,Transport Related Expense,Diesel Oil,3202,FUELMATE LTD,A0090265,13/09/2022,AAS0328934,61.43,N,,N,N
Pendle Borough Council,Financial Services,Transport Related Expense,Diesel Oil,3202,FUELMATE LTD,A0090265,27/09/2022,AAS0328935,323.37,N,,N,N
Pendle Borough Council,Financial Services,Transport Related Expense,Diesel Oil,3202,FUELMATE LTD,A0090265,06/09/2022,AAS0328937,423,N,,N,N
Pendle Borough Council,Financial Services,Transport Related Expense,Diesel Oil,3202,FUELMATE LTD,A0090265,20/09/2022,AAS0328938,678.33,N,,N,N
Pendle Borough Council,Financial Services,Transport Related Expense,Diesel Oil,3202,FUELMATE LTD,A0090265,06/09/2022,AAS0328937,241.28,N,,N,N
Pendle Borough Council,Financial Services,Transport Related Expense,Diesel Oil,3202,FUELMATE LTD,A0090265,13/09/2022,AAS0328934,262.89,N,,N,N
Pendle Borough Council,Financial Services,Transport Related Expense,Diesel Oil,3202,FUELMATE LTD,A0090265,27/09/2022,AAS0328935,264.63,N,,N,N
Pendle Borough Council,Financial Services,Transport Related Expense,Diesel Oil,3202,FUELMATE LTD,A0090265,20/09/2022,AAS0328938,412.09,N,,N,N
Pendle Borough Council,Financial Services,Transport Related Expense,Diesel Oil,3202,FUELMATE LTD,A0090265,27/09/2022,AAS0328935,104.91,N,,N,N
Pendle Borough Council,Financial Services,Transport Related Expense,Diesel Oil,3202,FUELMATE LTD,A0090265,13/09/2022,AAS0328934,106.05,N,,N,N
Pendle Borough Council,Financial Services,Transport Related Expense,Diesel Oil,3202,FUELMATE LTD,A0090265,20/09/2022,AAS0328938,106.06,N,,N,N
Pendle Borough Council,Financial Services,Transport Related Expense,Diesel Oil,3202,FUELMATE LTD,A0090265,06/09/2022,AAS0328937,333.27,N,,N,N
Pendle Borough Council,Financial Services,Transport Related Expense,Diesel Oil,3202,FUELMATE LTD,A0090265,06/09/2022,AAS0328937,316.88,N,,N,N
Pendle Borough Council,Financial Services,Transport Related Expense,Diesel Oil,3202,FUELMATE LTD,A0090265,13/09/2022,AAS0328934,321.16,N,,N,N
Pendle Borough Council,Financial Services,Transport Related Expense,Diesel Oil,3202,FUELMATE LTD,A0090265,20/09/2022,AAS0328938,322.51,N,,N,N
Pendle Borough Council,Financial Services,Transport Related Expense,Diesel Oil,3202,FUELMATE LTD,A0090265,27/09/2022,AAS0328935,327.74,N,,N,N
Pendle Borough Council,Financial Services,Transport Related Expense,Diesel Oil,3202,FUELMATE LTD,A0090265,06/09/2022,AAS0328937,304.47,N,,N,N
Pendle Borough Council,Financial Services,Transport Related Expense,Diesel Oil,3202,FUELMATE LTD,A0090265,13/09/2022,AAS0328934,320.67,N,,N,N
Pendle Borough Council,Financial Services,Transport Related Expense,Diesel Oil,3202,FUELMATE LTD,A0090265,27/09/2022,AAS0328935,360.02,N,,N,N
Pendle Borough Council,Financial Services,Transport Related Expense,Diesel Oil,3202,FUELMATE LTD,A0090265,20/09/2022,AAS0328938,417.87,N,,N,N
Pendle Borough Council,Financial Services,Transport Related Expense,Diesel Oil,3202,FUELMATE LTD,A0090265,27/09/2022,AAS0328935,270.09,N,,N,N
Pendle Borough Council,Financial Services,Transport Related Expense,Diesel Oil,3202,FUELMATE LTD,A0090265,20/09/2022,AAS0328938,277.08,N,,N,N
Pendle Borough Council,Financial Services,Transport Related Expense,Diesel Oil,3202,FUELMATE LTD,A0090265,06/09/2022,AAS0328937,350.49,N,,N,N
Pendle Borough Council,Financial Services,Transport Related Expense,Diesel Oil,3202,FUELMATE LTD,A0090265,13/09/2022,AAS0328934,371.66,N,,N,N
Pendle Borough Council,Financial Services,Transport Related Expense,Diesel Oil,3202,FUELMATE LTD,A0090265,27/09/2022,AAS0328935,111.09,N,,N,N
Pendle Borough Council,Financial Services,Transport Related Expense,Diesel Oil,3202,FUELMATE LTD,A0090265,20/09/2022,AAS0328938,244.9,N,,N,N
Pendle Borough Council,Financial Services,Transport Related Expense,Diesel Oil,3202,FUELMATE LTD,A0090265,06/09/2022,AAS0328937,272.4,N,,N,N
Pendle Borough Council,Financial Services,Transport Related Expense,Diesel Oil,3202,FUELMATE LTD,A0090265,06/09/2022,AAS0328937,91.28,N,,N,N
Pendle Borough Council,Financial Services,Transport Related Expense,Diesel Oil,3202,FUELMATE LTD,A0090265,27/09/2022,AAS0328935,289.29,N,,N,N
Pendle Borough Council,Financial Services,Transport Related Expense,Diesel Oil,3202,FUELMATE LTD,A0090265,13/09/2022,AAS0328934,348.93,N,,N,N
Pendle Borough Council,Financial Services,Transport Related Expense,Diesel Oil,3202,FUELMATE LTD,A0090265,20/09/2022,AAS0328938,363.32,N,,N,N
Pendle Borough Council,Financial Services,Transport Related Expense,Diesel Oil,3202,FUELMATE LTD,A0090265,27/09/2022,AAS0328935,244.31,N,,N,N
Pendle Borough Council,Financial Services,Transport Related Expense,Diesel Oil,3202,FUELMATE LTD,A0090265,20/09/2022,AAS0328938,290.71,N,,N,N
Pendle Borough Council,Financial Services,Transport Related Expense,Diesel Oil,3202,FUELMATE LTD,A0090265,13/09/2022,AAS0328934,311.13,N,,N,N
Pendle Borough Council,Financial Services,Transport Related Expense,Diesel Oil,3202,FUELMATE LTD,A0090265,06/09/2022,AAS0328937,431.84,N,,N,N
Pendle Borough Council,Financial Services,Transport Related Expense,Diesel Oil,3202,FUELMATE LTD,A0090265,06/09/2022,AAS0328937,63.95,N,,N,N
Pendle Borough Council,Financial Services,Transport Related Expense,Diesel Oil,3202,FUELMATE LTD,A0090265,06/09/2022,AAS0328937,200.82,N,,N,N
Pendle Borough Council,Financial Services,Transport Related Expense,Diesel Oil,3202,FUELMATE LTD,A0090265,13/09/2022,AAS0328934,208.4,N,,N,N
Pendle Borough Council,Financial Services,Transport Related Expense,Diesel Oil,3202,FUELMATE LTD,A0090265,27/09/2022,AAS0328935,224.04,N,,N,N
Pendle Borough Council,Financial Services,Transport Related Expense,Diesel Oil,3202,FUELMATE LTD,A0090265,20/09/2022,AAS0328938,245.68,N,,N,N
Pendle Borough Council,Financial Services,Transport Related Expense,Diesel Oil,3202,FUELMATE LTD,A0090265,13/09/2022,AAS0328934,27.54,N,,N,N
Pendle Borough Council,Financial Services,Transport Related Expense,Diesel Oil,3202,FUELMATE LTD,A0090265,27/09/2022,AAS0328935,72.82,N,,N,N
Pendle Borough Council,Financial Services,Transport Related Expense,Diesel Oil,3202,FUELMATE LTD,A0090265,06/09/2022,AAS0328937,222.19,N,,N,N
Pendle Borough Council,Financial Services,Transport Related Expense,Diesel Oil,3202,FUELMATE LTD,A0090265,20/09/2022,AAS0328938,230.76,N,,N,N
Pendle Borough Council,Financial Services,Transport Related Expense,Diesel Oil,3202,FUELMATE LTD,A0090265,27/09/2022,AAS0328935,166.09,N,,N,N
Pendle Borough Council,Financial Services,Transport Related Expense,Diesel Oil,3202,FUELMATE LTD,A0090265,06/09/2022,AAS0328937,217.27,N,,N,N
Pendle Borough Council,Financial Services,Transport Related Expense,Diesel Oil,3202,FUELMATE LTD,A0090265,13/09/2022,AAS0328934,229.69,N,,N,N
Pendle Borough Council,Financial Services,Transport Related Expense,Diesel Oil,3202,FUELMATE LTD,A0090265,20/09/2022,AAS0328938,241.78,N,,N,N
Pendle Borough Council,Financial Services,Transport Related Expense,Diesel Oil,3202,FUELMATE LTD,A0090265,20/09/2022,AAS0328938,198.22,N,,N,N
Pendle Borough Council,Financial Services,Transport Related Expense,Diesel Oil,3202,FUELMATE LTD,A0090265,06/09/2022,AAS0328937,213.17,N,,N,N
Pendle Borough Council,Financial Services,Transport Related Expense,Diesel Oil,3202,FUELMATE LTD,A0090265,13/09/2022,AAS0328934,221.89,N,,N,N
Pendle Borough Council,Financial Services,Transport Related Expense,Diesel Oil,3202,FUELMATE LTD,A0090265,27/09/2022,AAS0328935,91.69,N,,N,N
Pendle Borough Council,Financial Services,Transport Related Expense,Diesel Oil,3202,FUELMATE LTD,A0090265,13/09/2022,AAS0328934,107.33,N,,N,N
Pendle Borough Council,Financial Services,Transport Related Expense,Diesel Oil,3202,FUELMATE LTD,A0090265,20/09/2022,AAS0328938,84.01,N,,N,N
Pendle Borough Council,Financial Services,Transport Related Expense,Diesel Oil,3202,FUELMATE LTD,A0090265,27/09/2022,AAS0328935,85.82,N,,N,N
Pendle Borough Council,Financial Services,Transport Related Expense,Diesel Oil,3202,FUELMATE LTD,A0090265,06/09/2022,AAS0328937,87.35,N,,N,N
Pendle Borough Council,Financial Services,Transport Related Expense,Diesel Oil,3202,FUELMATE LTD,A0090265,27/09/2022,AAS0328935,90.12,N,,N,N
Pendle Borough Council,Financial Services,Transport Related Expense,Diesel Oil,3202,FUELMATE LTD,A0090265,13/09/2022,AAS0328934,96.11,N,,N,N
Pendle Borough Council,Financial Services,Transport Related Expense,Diesel Oil,3202,FUELMATE LTD,A0090265,20/09/2022,AAS0328938,57.79,N,,N,N
Pendle Borough Council,Financial Services,Transport Related Expense,Diesel Oil,3202,FUELMATE LTD,A0090265,06/09/2022,AAS0328937,77.9,N,,N,N
Pendle Borough Council,Financial Services,Transport Related Expense,Diesel Oil,3202,FUELMATE LTD,A0090265,27/09/2022,AAS0328935,141.78,N,,N,N
Pendle Borough Council,Financial Services,Transport Related Expense,Diesel Oil,3202,FUELMATE LTD,A0090265,13/09/2022,AAS0328934,151.19,N,,N,N
Pendle Borough Council,Financial Services,Transport Related Expense,Diesel Oil,3202,FUELMATE LTD,A0090265,13/09/2022,AAS0328934,46.74,N,,N,N
Pendle Borough Council,Financial Services,Transport Related Expense,Diesel Oil,3202,FUELMATE LTD,A0090265,27/09/2022,AAS0328935,92.76,N,,N,N
Pendle Borough Council,Financial Services,Transport Related Expense,Diesel Oil,3202,FUELMATE LTD,A0090265,06/09/2022,AAS0328937,95.49,N,,N,N
Pendle Borough Council,Financial Services,Transport Related Expense,Diesel Oil,3202,FUELMATE LTD,A0090265,20/09/2022,AAS0328938,143.93,N,,N,N
Pendle Borough Council,Financial Services,Transport Related Expense,Diesel Oil,3202,FUELMATE LTD,A0090265,20/09/2022,AAS0328938,64.56,N,,N,N
Pendle Borough Council,Financial Services,Transport Related Expense,Diesel Oil,3202,FUELMATE LTD,A0090265,06/09/2022,AAS0328937,66.68,N,,N,N
Pendle Borough Council,Financial Services,Transport Related Expense,Diesel Oil,3202,FUELMATE LTD,A0090265,13/09/2022,AAS0328934,67.49,N,,N,N
Pendle Borough Council,Financial Services,Transport Related Expense,Diesel Oil,3202,FUELMATE LTD,A0090265,27/09/2022,AAS0328935,69.86,N,,N,N
Pendle Borough Council,Financial Services,Transport Related Expense,Diesel Oil,3202,FUELMATE LTD,A0090265,06/09/2022,AAS0328937,62.26,N,,N,N
Pendle Borough Council,Financial Services,Transport Related Expense,Diesel Oil,3202,FUELMATE LTD,A0090265,20/09/2022,AAS0328938,69.09,N,,N,N
Pendle Borough Council,Financial Services,Transport Related Expense,Diesel Oil,3202,FUELMATE LTD,A0090265,27/09/2022,AAS0328935,77.59,N,,N,N
Pendle Borough Council,Financial Services,Transport Related Expense,Diesel Oil,3202,FUELMATE LTD,A0090265,13/09/2022,AAS0328934,138.22,N,,N,N
Pendle Borough Council,Financial Services,Transport Related Expense,Diesel Oil,3202,FUELMATE LTD,A0090265,13/09/2022,AAS0328934,63.2,N,,N,N
Pendle Borough Council,Financial Services,Transport Related Expense,Diesel Oil,3202,FUELMATE LTD,A0090265,06/09/2022,AAS0328937,66.76,N,,N,N
Pendle Borough Council,Financial Services,Transport Related Expense,Diesel Oil,3202,FUELMATE LTD,A0090265,20/09/2022,AAS0328938,72.7,N,,N,N
Pendle Borough Council,Financial Services,Transport Related Expense,Diesel Oil,3202,FUELMATE LTD,A0090265,27/09/2022,AAS0328935,78.4,N,,N,N
Pendle Borough Council,Financial Services,Transport Related Expense,Diesel Oil,3202,FUELMATE LTD,A0090265,06/09/2022,AAS0328937,68.47,N,,N,N
Pendle Borough Council,Financial Services,Transport Related Expense,Diesel Oil,3202,FUELMATE LTD,A0090265,20/09/2022,AAS0328938,70.09,N,,N,N
Pendle Borough Council,Financial Services,Transport Related Expense,Diesel Oil,3202,FUELMATE LTD,A0090265,27/09/2022,AAS0328935,74.53,N,,N,N
Pendle Borough Council,Financial Services,Transport Related Expense,Diesel Oil,3202,FUELMATE LTD,A0090265,13/09/2022,AAS0328934,102.72,N,,N,N
Pendle Borough Council,Financial Services,Transport Related Expense,Diesel Oil,3202,FUELMATE LTD,A0090265,20/09/2022,AAS0328938,53.55,N,,N,N
Pendle Borough Council,Financial Services,Transport Related Expense,Diesel Oil,3202,FUELMATE LTD,A0090265,20/09/2022,AAS0328938,53.39,N,,N,N
Pendle Borough Council,Financial Services,Transport Related Expense,Diesel Oil,3202,FUELMATE LTD,A0090265,13/09/2022,AAS0328934,32.35,N,,N,N
Pendle Borough Council,Financial Services,Transport Related Expense,Diesel Oil,3202,FUELMATE LTD,A0090265,06/09/2022,AAS0328937,52.07,N,,N,N
Pendle Borough Council,Financial Services,Transport Related Expense,Diesel Oil,3202,FUELMATE LTD,A0090265,06/09/2022,AAS0328937,46.22,N,,N,N
Pendle Borough Council,Financial Services,Transport Related Expense,Diesel Oil,3202,FUELMATE LTD,A0090265,13/09/2022,AAS0328934,49.79,N,,N,N
Pendle Borough Council,Financial Services,Transport Related Expense,Diesel Oil,3202,FUELMATE LTD,A0090265,27/09/2022,AAS0328935,51.66,N,,N,N
Pendle Borough Council,Financial Services,Transport Related Expense,Diesel Oil,3202,FUELMATE LTD,A0090265,20/09/2022,AAS0328938,24.56,N,,N,N
Pendle Borough Council,Financial Services,Transport Related Expense,Diesel Oil,3202,FUELMATE LTD,A0090265,27/09/2022,AAS0328935,25.11,N,,N,N
Pendle Borough Council,Financial Services,Transport Related Expense,Diesel Oil,3202,FUELMATE LTD,A0090265,27/09/2022,AAS0328935,60.21,N,,N,N
Pendle Borough Council,Financial Services,Transport Related Expense,Diesel Oil,3202,FUELMATE LTD,A0090265,06/09/2022,AAS0328937,56.17,N,,N,N
Pendle Borough Council,Financial Services,Transport Related Expense,Diesel Oil,3202,FUELMATE LTD,A0090265,06/09/2022,AAS0328937,73.79,N,,N,N
Pendle Borough Council,Financial Services,Transport Related Expense,Diesel Oil,3202,FUELMATE LTD,A0090265,13/09/2022,AAS0328934,89.51,N,,N,N
Pendle Borough Council,Financial Services,Transport Related Expense,Diesel Oil,3202,FUELMATE LTD,A0090265,13/09/2022,AAS0328934,95.5,N,,N,N
Pendle Borough Council,Financial Services,Transport Related Expense,Diesel Oil,3202,FUELMATE LTD,A0090265,20/09/2022,AAS0328938,36.72,N,,N,N
Pendle Borough Council,Financial Services,Transport Related Expense,Diesel Oil,3202,FUELMATE LTD,A0090265,13/09/2022,AAS0328934,70.51,N,,N,N
Pendle Borough Council,Financial Services,Transport Related Expense,Diesel Oil,3202,FUELMATE LTD,A0090265,20/09/2022,AAS0328938,73.81,N,,N,N
Pendle Borough Council,Financial Services,Transport Related Expense,Diesel Oil,3202,FUELMATE LTD,A0090265,13/09/2022,AAS0328934,76.34,N,,N,N
Pendle Borough Council,Financial Services,Transport Related Expense,Diesel Oil,3202,FUELMATE LTD,A0090265,20/09/2022,AAS0328938,83.95,N,,N,N
Pendle Borough Council,Financial Services,Transport Related Expense,Diesel Oil,3202,FUELMATE LTD,A0090265,06/09/2022,AAS0328937,68.03,N,,N,N
Pendle Borough Council,Financial Services,Transport Related Expense,Diesel Oil,3202,FUELMATE LTD,A0090265,20/09/2022,AAS0328938,78.34,N,,N,N
Pendle Borough Council,Financial Services,Transport Related Expense,Diesel Oil,3202,FUELMATE LTD,A0090265,13/09/2022,AAS0328934,59.7,N,,N,N
Pendle Borough Council,Financial Services,Transport Related Expense,Diesel Oil,3202,FUELMATE LTD,A0090265,06/09/2022,AAS0328937,78.38,N,,N,N
Pendle Borough Council,Financial Services,Transport Related Expense,Diesel Oil,3202,FUELMATE LTD,A0090265,27/09/2022,AAS0328935,82.47,N,,N,N
Pendle Borough Council,Financial Services,Transport Related Expense,Diesel Oil,3202,FUELMATE LTD,A0090265,27/09/2022,AAS0328935,51.07,N,,N,N
Pendle Borough Council,Financial Services,Transport Related Expense,Diesel Oil,3202,FUELMATE LTD,A0090265,06/09/2022,AAS0328937,57.87,N,,N,N
Pendle Borough Council,Financial Services,Transport Related Expense,Diesel Oil,3202,FUELMATE LTD,A0090265,13/09/2022,AAS0328934,37.6,N,,N,N
Pendle Borough Council,Financial Services,Transport Related Expense,Diesel Oil,3202,FUELMATE LTD,A0090265,06/09/2022,AAS0328937,54.12,N,,N,N
Pendle Borough Council,Financial Services,Transport Related Expense,Diesel Oil,3202,FUELMATE LTD,A0090265,27/09/2022,AAS0328935,144.26,N,,N,N
Pendle Borough Council,Engineering & Special Projects,Premises Related Expense,Grounds : R & M : Day to Day : Routine,2101,GREEN CLEAN RESTORATION,A0090368,29/09/2022,HED0328789,300,N,,N,N
Pendle Borough Council,Revenues Services,Supplies and Services,Consultants Fees,4401,PS&P LTD,A0090720,29/09/2022,TRE0328853,2,N,,N,N
Pendle Borough Council,Revenues Services,Supplies and Services,Consultants Fees,4401,PS&P LTD,A0090720,29/09/2022,TRE0328856,2,N,,N,N
Pendle Borough Council,Revenues Services,Supplies and Services,Consultants Fees,4401,PS&P LTD,A0090720,29/09/2022,TRE0328858,2,N,,N,N
Pendle Borough Council,Revenues Services,Supplies and Services,Consultants Fees,4401,PS&P LTD,A0090720,29/09/2022,TRE0328854,4,N,,N,N
Pendle Borough Council,Revenues Services,Supplies and Services,Consultants Fees,4401,PS&P LTD,A0090720,29/09/2022,TRE0328857,4,N,,N,N
Pendle Borough Council,Revenues Services,Supplies and Services,Consultants Fees,4401,PS&P LTD,A0090720,29/09/2022,TRE0328859,4,N,,N,N
Pendle Borough Council,Revenues Services,Supplies and Services,Consultants Fees,4401,PS&P LTD,A0090720,29/09/2022,TRE0328855,4.2,N,,N,N
Pendle Borough Council,Engineering & Special Projects,,Deposits in Lieu of Bond,B669,TRAWDEN & DISTRICT AGRICULTURAL SOCIETY,A0090914,01/09/2022,HED0328240,500,N,,N,N
Pendle Borough Council,Parks & Recreation Services,Transport Related Expense,Tprt : Repairs : General,3105,SUPER AUTO SAVER,A0090951,29/09/2022,PCO0328733,8,N,,N,N
Pendle Borough Council,Parks & Recreation Services,Transport Related Expense,Tprt : Repairs : General,3105,SUPER AUTO SAVER,A0090951,29/09/2022,PCO0328733,41,N,,N,N
Pendle Borough Council,Engineering & Special Projects,Capital Costs,Capital : Payments,CD14,SITE SURVEYING SERVICES LIMITED,A0090952,01/09/2022,HED0328260,250,N,,N,N
Pendle Borough Council,Engineering & Special Projects,Supplies and Services,Other Expenses,4705,CALICO HOMES,A0091059,29/09/2022,HED0328752,93.98,N,1151945,N,N
Pendle Borough Council,Operational Services,Supplies and Services,Printing & Stationery,4301,RESTORE DATASHRED,A0091201,29/09/2022,OPS0328743,93,N,,N,N
Pendle Borough Council,Operational Services,,Fees Income : Non-VATable,9302,PERMISERV LIMITED,A0091396,15/09/2022,OPS0328559,334.3,N,,N,N
Pendle Borough Council,Engineering & Special Projects,Capital Costs,Capital : Payments,CD14,LIDGETT & BEYOND,A0091512,22/09/2022,HED0328691,743,N,,N,N
Pendle Borough Council,Engineering & Special Projects,Capital Costs,Capital : Payments,CD14,LIDGETT & BEYOND,A0091512,22/09/2022,HED0328691,1139.8,N,,N,N
Pendle Borough Council,Planning & Building Control,,Fees Income : Non-VATable,9302,PORTALPLANQUEST LIMITED,A0091554,29/09/2022,PBC0328753,116,N,,N,N
Pendle Borough Council,Planning & Building Control,,Fees Income : Non-VATable,9302,PORTALPLANQUEST LIMITED,A0091554,15/09/2022,PBC0328545,234,N,,N,N
Pendle Borough Council,Parks & Recreation Services,Agency Staff,Emp : Basic Wages,1001,NW RECRUITMENT SERVICES LIMITED,A0091588,29/09/2022,PCO0328728,1459.88,N,,N,N
Pendle Borough Council,Parks & Recreation Services,Agency Staff,Emp : Basic Wages,1001,NW RECRUITMENT SERVICES LIMITED,A0091588,29/09/2022,PCO0328764,2495.64,N,,N,N
Pendle Borough Council,Parks & Recreation Services,Agency Staff,Emp : Basic Wages,1001,NW RECRUITMENT SERVICES LIMITED,A0091588,29/09/2022,PCO0328730,3107.09,N,,N,N
Pendle Borough Council,Parks & Recreation Services,Agency Staff,Emp : Basic Wages,1001,NW RECRUITMENT SERVICES LIMITED,A0091588,01/09/2022,PCO0328250,3197.05,N,,N,N
Pendle Borough Council,Parks & Recreation Services,Agency Staff,Emp : Basic Wages,1001,NW RECRUITMENT SERVICES LIMITED,A0091588,08/09/2022,PCO0328433,3552.99,N,,N,N
Pendle Borough Council,Parks & Recreation Services,Agency Staff,Emp : Agency Wages,1004,NW RECRUITMENT SERVICES LIMITED,A0091588,29/09/2022,PCO0328729,106,N,,N,N
Pendle Borough Council,Parks & Recreation Services,Agency Staff,Emp : Agency Wages,1004,NW RECRUITMENT SERVICES LIMITED,A0091588,15/09/2022,PCO0328540,225.26,N,,N,N
Pendle Borough Council,Parks & Recreation Services,Agency Staff,Emp : Agency Wages,1004,NW RECRUITMENT SERVICES LIMITED,A0091588,29/09/2022,PCO0328727,344.51,N,,N,N
Pendle Borough Council,Operational Services,Agency Staff,Emp : Agency Wages,1004,NW RECRUITMENT SERVICES LIMITED,A0091588,01/09/2022,OPS0328109,1842.7,N,,N,N
Pendle Borough Council,Operational Services,Agency Staff,Emp : Agency Wages,1004,NW RECRUITMENT SERVICES LIMITED,A0091588,15/09/2022,OPS0328571,2056.08,N,,N,N
Pendle Borough Council,Operational Services,Agency Staff,Emp : Agency Wages,1004,NW RECRUITMENT SERVICES LIMITED,A0091588,15/09/2022,OPS0328570,2302.27,N,,N,N
Pendle Borough Council,Operational Services,Agency Staff,Emp : Agency Wages,1004,NW RECRUITMENT SERVICES LIMITED,A0091588,01/09/2022,OPS0328108,2601.76,N,,N,N
Pendle Borough Council,Operational Services,Agency Staff,Emp : Agency Wages,1004,NW RECRUITMENT SERVICES LIMITED,A0091588,15/09/2022,OPS0328572,2710.68,N,,N,N
Pendle Borough Council,Operational Services,Agency Staff,Emp : Agency Wages,1004,NW RECRUITMENT SERVICES LIMITED,A0091588,15/09/2022,OPS0328572,741.86,N,,N,N
Pendle Borough Council,Operational Services,Agency Staff,Emp : Agency Wages,1004,NW RECRUITMENT SERVICES LIMITED,A0091588,01/09/2022,OPS0328109,1667.2,N,,N,N
Pendle Borough Council,Operational Services,Agency Staff,Emp : Agency Wages,1004,NW RECRUITMENT SERVICES LIMITED,A0091588,15/09/2022,OPS0328571,1721.67,N,,N,N
Pendle Borough Council,Operational Services,Agency Staff,Emp : Agency Wages,1004,NW RECRUITMENT SERVICES LIMITED,A0091588,15/09/2022,OPS0328570,1777.98,N,,N,N
Pendle Borough Council,Operational Services,Agency Staff,Emp : Agency Wages,1004,NW RECRUITMENT SERVICES LIMITED,A0091588,01/09/2022,OPS0328108,1951.31,N,,N,N
Pendle Borough Council,Operational Services,Agency Staff,Emp : Agency Wages,1004,NW RECRUITMENT SERVICES LIMITED,A0091588,01/09/2022,OPS0328109,263.23,N,,N,N
Pendle Borough Council,Operational Services,Agency Staff,Emp : Agency Wages,1004,NW RECRUITMENT SERVICES LIMITED,A0091588,01/09/2022,OPS0328108,325.22,N,,N,N
Pendle Borough Council,Operational Services,Agency Staff,Emp : Agency Wages,1004,NW RECRUITMENT SERVICES LIMITED,A0091588,15/09/2022,OPS0328570,683.85,N,,N,N
Pendle Borough Council,Operational Services,Agency Staff,Emp : Agency Wages,1004,NW RECRUITMENT SERVICES LIMITED,A0091588,15/09/2022,OPS0328572,699.07,N,,N,N
Pendle Borough Council,Operational Services,Agency Staff,Emp : Agency Wages,1004,NW RECRUITMENT SERVICES LIMITED,A0091588,15/09/2022,OPS0328571,891.8,N,,N,N
Pendle Borough Council,Parks & Recreation Services,Agency Staff,Emp : Salaries & Wages,1020,NW RECRUITMENT SERVICES LIMITED,A0091588,08/09/2022,PCO0328402,165.63,N,,N,N
Pendle Borough Council,Parks & Recreation Services,Premises Related Expense,Bldgs : R & M : Day To Day,2001,NW RECRUITMENT SERVICES LIMITED,A0091588,29/09/2022,PCO0328729,53,N,,N,N
Pendle Borough Council,Parks & Recreation Services,Supplies and Services,EFM : Other Equipment,4003,NW RECRUITMENT SERVICES LIMITED,A0091588,29/09/2022,PCO0328728,380.18,N,,N,N
Pendle Borough Council,Parks & Recreation Services,Supplies and Services,EFM : Other Equipment,4003,NW RECRUITMENT SERVICES LIMITED,A0091588,01/09/2022,PCO0328250,486.35,N,,N,N
Pendle Borough Council,Parks & Recreation Services,Supplies and Services,EFM : Other Equipment,4003,NW RECRUITMENT SERVICES LIMITED,A0091588,08/09/2022,PCO0328433,486.35,N,,N,N
Pendle Borough Council,Parks & Recreation Services,Supplies and Services,EFM : Other Equipment,4003,NW RECRUITMENT SERVICES LIMITED,A0091588,29/09/2022,PCO0328730,486.35,N,,N,N
Pendle Borough Council,Parks & Recreation Services,Supplies and Services,EFM : Other Equipment,4003,NW RECRUITMENT SERVICES LIMITED,A0091588,29/09/2022,PCO0328764,486.35,N,,N,N
Pendle Borough Council,Operational Services,Transport Related Expense,Tprt : Repairs : General,3105,GO PLANT FLEET SERVICES LIMITED,A0091600,01/09/2022,OPS0328090,203.33,N,,N,N
Pendle Borough Council,Operational Services,Transport Related Expense,Tprt : Repairs : General,3105,GO PLANT FLEET SERVICES LIMITED,A0091600,01/09/2022,OPS0328102,234.76,N,,N,N
Pendle Borough Council,Operational Services,Transport Related Expense,Tprt : Repairs : General,3105,GO PLANT FLEET SERVICES LIMITED,A0091600,08/09/2022,OPS0328387,121.8,N,,N,N
Pendle Borough Council,Operational Services,Transport Related Expense,Tprt : Repairs : General,3105,GO PLANT FLEET SERVICES LIMITED,A0091600,01/09/2022,OPS0328112,54.8,N,,N,N
Pendle Borough Council,Operational Services,Transport Related Expense,Tprt : Repairs : General,3105,GO PLANT FLEET SERVICES LIMITED,A0091600,01/09/2022,OPS0328103,169.22,N,,N,N
Pendle Borough Council,Operational Services,Transport Related Expense,Tprt : Repairs : General,3105,GO PLANT FLEET SERVICES LIMITED,A0091600,01/09/2022,OPS0328100,40.6,N,,N,N
Pendle Borough Council,Operational Services,Transport Related Expense,Tprt : Repairs : General,3105,GO PLANT FLEET SERVICES LIMITED,A0091600,01/09/2022,OPS0328093,75.65,N,,N,N
Pendle Borough Council,Operational Services,Transport Related Expense,Tprt : Repairs : General,3105,GO PLANT FLEET SERVICES LIMITED,A0091600,08/09/2022,OPS0328384,60.9,N,,N,N
Pendle Borough Council,Operational Services,Transport Related Expense,Tprt : Repairs : General,3105,GO PLANT FLEET SERVICES LIMITED,A0091600,08/09/2022,OPS0328386,217.54,N,,N,N
Pendle Borough Council,Operational Services,Transport Related Expense,Tprt : Repairs : General,3105,GO PLANT FLEET SERVICES LIMITED,A0091600,01/09/2022,OPS0328101,236.57,N,,N,N
Pendle Borough Council,Operational Services,Transport Related Expense,Tprt : Repairs : General,3105,GO PLANT FLEET SERVICES LIMITED,A0091600,01/09/2022,OPS0328091,537.95,N,,N,N
Pendle Borough Council,Operational Services,Transport Related Expense,Tprt : Repairs : General,3105,GO PLANT FLEET SERVICES LIMITED,A0091600,08/09/2022,OPS0328385,60.9,N,,N,N
Pendle Borough Council,Operational Services,Transport Related Expense,Tprt : Repairs : General,3105,GO PLANT FLEET SERVICES LIMITED,A0091600,01/09/2022,OPS0328089,186.32,N,,N,N
Pendle Borough Council,Operational Services,Transport Related Expense,Tprt : Repairs : General,3105,GO PLANT FLEET SERVICES LIMITED,A0091600,01/09/2022,OPS0328095,163.78,N,,N,N
Pendle Borough Council,Operational Services,Transport Related Expense,Tprt : Repairs : General,3105,GO PLANT FLEET SERVICES LIMITED,A0091600,01/09/2022,OPS0328113,27.78,N,,N,N
Pendle Borough Council,Operational Services,Transport Related Expense,Tprt : Repairs : General,3105,GO PLANT FLEET SERVICES LIMITED,A0091600,01/09/2022,OPS0328094,40.6,N,,N,N
Pendle Borough Council,Operational Services,Transport Related Expense,Tprt : Repairs : General,3105,GO PLANT FLEET SERVICES LIMITED,A0091600,08/09/2022,OPS0328381,136.06,N,,N,N
Pendle Borough Council,Operational Services,Transport Related Expense,Tprt : Repairs : General,3105,GO PLANT FLEET SERVICES LIMITED,A0091600,01/09/2022,OPS0328092,151.7,N,,N,N
Pendle Borough Council,Operational Services,Transport Related Expense,Tprt : Repairs : General,3105,GO PLANT FLEET SERVICES LIMITED,A0091600,01/09/2022,OPS0328098,484.26,N,,N,N
Pendle Borough Council,Operational Services,Transport Related Expense,Tprt : Repairs : General,3105,GO PLANT FLEET SERVICES LIMITED,A0091600,08/09/2022,OPS0328382,286.19,N,,N,N
Pendle Borough Council,Operational Services,Transport Related Expense,Tprt : Repairs : General,3105,GO PLANT FLEET SERVICES LIMITED,A0091600,01/09/2022,OPS0328097,112.79,N,,N,N
Pendle Borough Council,Operational Services,Transport Related Expense,Tprt : Repairs : General,3105,GO PLANT FLEET SERVICES LIMITED,A0091600,15/09/2022,OPS0328573,61.91,N,,N,N
Pendle Borough Council,Operational Services,Transport Related Expense,Tyres,3204,GO PLANT FLEET SERVICES LIMITED,A0091600,01/09/2022,OPS0328114,74.83,N,,N,N
Pendle Borough Council,Operational Services,Transport Related Expense,Tyres,3204,GO PLANT FLEET SERVICES LIMITED,A0091600,01/09/2022,OPS0328115,275.63,N,,N,N
Pendle Borough Council,Operational Services,Transport Related Expense,Tyres,3204,GO PLANT FLEET SERVICES LIMITED,A0091600,01/09/2022,OPS0328096,28.63,N,,N,N
Pendle Borough Council,Operational Services,Transport Related Expense,Tyres,3204,GO PLANT FLEET SERVICES LIMITED,A0091600,08/09/2022,OPS0328383,111.6,N,,N,N
Pendle Borough Council,Operational Services,Transport Related Expense,Tyres,3204,GO PLANT FLEET SERVICES LIMITED,A0091600,01/09/2022,OPS0328099,118.63,N,,N,N
Pendle Borough Council,Operational Services,Transport Related Expense,Tyres,3204,GO PLANT FLEET SERVICES LIMITED,A0091600,01/09/2022,OPS0328088,126.08,N,,N,N
Pendle Borough Council,Operational Services,Transport Related Expense,Tprt : Annual Hire Charge,3601,GO PLANT FLEET SERVICES LIMITED,A0091600,08/09/2022,OPS0328362,3540.62,N,,N,N
Pendle Borough Council,Operational Services,Transport Related Expense,Tprt : Annual Hire Charge,3601,GO PLANT FLEET SERVICES LIMITED,A0091600,08/09/2022,OPS0328362,3540.62,N,,N,N
Pendle Borough Council,Operational Services,Transport Related Expense,Tprt : Annual Hire Charge,3601,GO PLANT FLEET SERVICES LIMITED,A0091600,08/09/2022,OPS0328362,3540.62,N,,N,N
Pendle Borough Council,Operational Services,Transport Related Expense,Tprt : Annual Hire Charge,3601,GO PLANT FLEET SERVICES LIMITED,A0091600,08/09/2022,OPS0328362,3540.62,N,,N,N
Pendle Borough Council,Operational Services,Transport Related Expense,Tprt : Annual Hire Charge,3601,GO PLANT FLEET SERVICES LIMITED,A0091600,08/09/2022,OPS0328362,3540.62,N,,N,N
Pendle Borough Council,Operational Services,Transport Related Expense,Tprt : Annual Hire Charge,3601,GO PLANT FLEET SERVICES LIMITED,A0091600,08/09/2022,OPS0328362,3344.64,N,,N,N
Pendle Borough Council,Operational Services,Transport Related Expense,Tprt : Annual Hire Charge,3601,GO PLANT FLEET SERVICES LIMITED,A0091600,08/09/2022,OPS0328362,3540.62,N,,N,N
Pendle Borough Council,Operational Services,Transport Related Expense,Tprt : Annual Hire Charge,3601,GO PLANT FLEET SERVICES LIMITED,A0091600,08/09/2022,OPS0328362,3540.62,N,,N,N
Pendle Borough Council,Operational Services,Transport Related Expense,Tprt : Annual Hire Charge,3601,GO PLANT FLEET SERVICES LIMITED,A0091600,08/09/2022,OPS0328362,3549.74,N,,N,N
Pendle Borough Council,Operational Services,Transport Related Expense,Tprt : Annual Hire Charge,3601,GO PLANT FLEET SERVICES LIMITED,A0091600,08/09/2022,OPS0328362,3549.74,N,,N,N
Pendle Borough Council,Operational Services,Transport Related Expense,Tprt : Annual Hire Charge,3601,GO PLANT FLEET SERVICES LIMITED,A0091600,08/09/2022,OPS0328362,3549.74,N,,N,N
Pendle Borough Council,Operational Services,Transport Related Expense,Tprt : Annual Hire Charge,3601,GO PLANT FLEET SERVICES LIMITED,A0091600,08/09/2022,OPS0328362,3497.07,N,,N,N
Pendle Borough Council,Operational Services,Transport Related Expense,Tprt : Annual Hire Charge,3601,GO PLANT FLEET SERVICES LIMITED,A0091600,08/09/2022,OPS0328362,3393,N,,N,N
Pendle Borough Council,Operational Services,Transport Related Expense,Tprt : Annual Hire Charge,3601,GO PLANT FLEET SERVICES LIMITED,A0091600,08/09/2022,OPS0328362,2654.17,N,,N,N
Pendle Borough Council,Operational Services,Transport Related Expense,Tprt : Annual Hire Charge,3601,GO PLANT FLEET SERVICES LIMITED,A0091600,08/09/2022,OPS0328362,1981.53,N,,N,N
Pendle Borough Council,Operational Services,Transport Related Expense,Tprt : Annual Hire Charge,3601,GO PLANT FLEET SERVICES LIMITED,A0091600,08/09/2022,OPS0328362,1981.53,N,,N,N
Pendle Borough Council,Operational Services,Transport Related Expense,Tprt : Annual Hire Charge,3601,GO PLANT FLEET SERVICES LIMITED,A0091600,08/09/2022,OPS0328362,1981.53,N,,N,N
Pendle Borough Council,Operational Services,Transport Related Expense,Tprt : Annual Hire Charge,3601,GO PLANT FLEET SERVICES LIMITED,A0091600,08/09/2022,OPS0328362,1981.53,N,,N,N
Pendle Borough Council,Operational Services,Transport Related Expense,Tprt : Annual Hire Charge,3601,GO PLANT FLEET SERVICES LIMITED,A0091600,08/09/2022,OPS0328362,1981.53,N,,N,N
Pendle Borough Council,Operational Services,Transport Related Expense,Tprt : Annual Hire Charge,3601,GO PLANT FLEET SERVICES LIMITED,A0091600,08/09/2022,OPS0328362,509.54,N,,N,N
Pendle Borough Council,Operational Services,Transport Related Expense,Tprt : Annual Hire Charge,3601,GO PLANT FLEET SERVICES LIMITED,A0091600,08/09/2022,OPS0328362,509.54,N,,N,N
Pendle Borough Council,Operational Services,Transport Related Expense,Tprt : Annual Hire Charge,3601,GO PLANT FLEET SERVICES LIMITED,A0091600,08/09/2022,OPS0328362,598.81,N,,N,N
Pendle Borough Council,Operational Services,Transport Related Expense,Tprt : Annual Hire Charge,3601,GO PLANT FLEET SERVICES LIMITED,A0091600,08/09/2022,OPS0328362,650,N,,N,N
Pendle Borough Council,Operational Services,Transport Related Expense,Tprt : Annual Hire Charge,3601,GO PLANT FLEET SERVICES LIMITED,A0091600,08/09/2022,OPS0328362,598.81,N,,N,N
Pendle Borough Council,Operational Services,Transport Related Expense,Tprt : Annual Hire Charge,3601,GO PLANT FLEET SERVICES LIMITED,A0091600,08/09/2022,OPS0328362,598.81,N,,N,N
Pendle Borough Council,Operational Services,Transport Related Expense,Tprt : Annual Hire Charge,3601,GO PLANT FLEET SERVICES LIMITED,A0091600,08/09/2022,OPS0328362,650,N,,N,N
Pendle Borough Council,Operational Services,Transport Related Expense,Tprt : Annual Hire Charge,3601,GO PLANT FLEET SERVICES LIMITED,A0091600,08/09/2022,OPS0328362,598.81,N,,N,N
Pendle Borough Council,Operational Services,Transport Related Expense,Tprt : Annual Hire Charge,3601,GO PLANT FLEET SERVICES LIMITED,A0091600,08/09/2022,OPS0328362,239.53,N,,N,N
Pendle Borough Council,Operational Services,Transport Related Expense,Tprt : Annual Hire Charge,3601,GO PLANT FLEET SERVICES LIMITED,A0091600,08/09/2022,OPS0328362,239.53,N,,N,N
Pendle Borough Council,Operational Services,Transport Related Expense,Tprt : Annual Hire Charge,3601,GO PLANT FLEET SERVICES LIMITED,A0091600,08/09/2022,OPS0328362,239.53,N,,N,N
Pendle Borough Council,Operational Services,Transport Related Expense,Tprt : Annual Hire Charge,3601,GO PLANT FLEET SERVICES LIMITED,A0091600,08/09/2022,OPS0328362,239.53,N,,N,N
Pendle Borough Council,Operational Services,Transport Related Expense,Tprt : Annual Hire Charge,3601,GO PLANT FLEET SERVICES LIMITED,A0091600,08/09/2022,OPS0328362,239.53,N,,N,N
Pendle Borough Council,Operational Services,Transport Related Expense,Tprt : Annual Hire Charge,3601,GO PLANT FLEET SERVICES LIMITED,A0091600,08/09/2022,OPS0328362,239.53,N,,N,N
Pendle Borough Council,Operational Services,Transport Related Expense,Tprt : Annual Hire Charge,3601,GO PLANT FLEET SERVICES LIMITED,A0091600,08/09/2022,OPS0328362,239.53,N,,N,N
Pendle Borough Council,Operational Services,Transport Related Expense,Tprt : Annual Hire Charge,3601,GO PLANT FLEET SERVICES LIMITED,A0091600,08/09/2022,OPS0328362,339.69,N,,N,N
Pendle Borough Council,Operational Services,Transport Related Expense,Tprt : Annual Hire Charge,3601,GO PLANT FLEET SERVICES LIMITED,A0091600,08/09/2022,OPS0328388,420,N,,N,N
Pendle Borough Council,Operational Services,Transport Related Expense,Tprt : Annual Hire Charge,3601,GO PLANT FLEET SERVICES LIMITED,A0091600,08/09/2022,OPS0328362,592.28,N,,N,N
Pendle Borough Council,Operational Services,Transport Related Expense,Tprt : Annual Hire Charge,3601,GO PLANT FLEET SERVICES LIMITED,A0091600,08/09/2022,OPS0328362,592.28,N,,N,N
Pendle Borough Council,Operational Services,Transport Related Expense,Tprt : Annual Hire Charge,3601,GO PLANT FLEET SERVICES LIMITED,A0091600,08/09/2022,OPS0328362,592.28,N,,N,N
Pendle Borough Council,Operational Services,Transport Related Expense,Tprt : Annual Hire Charge,3601,GO PLANT FLEET SERVICES LIMITED,A0091600,08/09/2022,OPS0328362,592.28,N,,N,N
Pendle Borough Council,Operational Services,Transport Related Expense,Tprt : Annual Hire Charge,3601,GO PLANT FLEET SERVICES LIMITED,A0091600,08/09/2022,OPS0328362,592.28,N,,N,N
Pendle Borough Council,Operational Services,Transport Related Expense,Tprt : Annual Hire Charge,3601,GO PLANT FLEET SERVICES LIMITED,A0091600,08/09/2022,OPS0328362,535.67,N,,N,N
Pendle Borough Council,Operational Services,Transport Related Expense,Tprt : Annual Hire Charge,3601,GO PLANT FLEET SERVICES LIMITED,A0091600,08/09/2022,OPS0328362,239.53,N,,N,N
Pendle Borough Council,Operational Services,Transport Related Expense,Tprt : Annual Hire Charge,3601,GO PLANT FLEET SERVICES LIMITED,A0091600,08/09/2022,OPS0328362,496.4,N,,N,N
Pendle Borough Council,Operational Services,Transport Related Expense,Tprt : Annual Hire Charge,3601,GO PLANT FLEET SERVICES LIMITED,A0091600,08/09/2022,OPS0328362,496.4,N,,N,N
Pendle Borough Council,Operational Services,Supplies and Services,Protective Clothing,4201,GO PLANT FLEET SERVICES LIMITED,A0091600,08/09/2022,OPS0328380,885.67,N,,N,N
Pendle Borough Council,Economic Development & Tourism,Supplies and Services,Consultants Fees,4401,CMS LIVE,A0091625,15/09/2022,REG0328551,15,N,,N,N
Pendle Borough Council,Economic Development & Tourism,Supplies and Services,Consultants Fees,4401,CMS LIVE,A0091625,15/09/2022,REG0328552,45,N,,N,N
Pendle Borough Council,Economic Development & Tourism,Supplies and Services,Consultants Fees,4401,CMS LIVE,A0091625,15/09/2022,REG0328574,300,N,,N,N
Pendle Borough Council,Chief Executives Policy Unit,Supplies and Services,Other Expenses,4705,COLNE PARISH CHURCH ST BARTHOLOMEW,A0091630,15/09/2022,COR0328462,2100,N,,N,N
Pendle Borough Council,Parks & Recreation Services,Premises Related Expense,Grounds : R & M : Day to Day : Routine,2101,PPL PRS LIMITED,A0091668,29/09/2022,PCO0328731,127.05,N,,N,N
Pendle Borough Council,Engineering & Special Projects,Premises Related Expense,Grounds : R & M : Day to Day : Routine,2101,A&G LANDSCAPES & GROUNDWORKS LIMITED,A0091675,29/09/2022,HED0328784,300,N,,N,60
Pendle Borough Council,Engineering & Special Projects,Premises Related Expense,Grounds : R & M : Day to Day : Routine,2101,A&G LANDSCAPES & GROUNDWORKS LIMITED,A0091675,29/09/2022,HED0328784,615,N,,N,N
Pendle Borough Council,Engineering & Special Projects,Premises Related Expense,Grounds : R & M : Day to Day : Routine,2101,A&G LANDSCAPES & GROUNDWORKS LIMITED,A0091675,29/09/2022,HED0328783,30,N,,N,N
Pendle Borough Council,Engineering & Special Projects,Premises Related Expense,Grounds : R & M : Day to Day : Routine,2101,A&G LANDSCAPES & GROUNDWORKS LIMITED,A0091675,29/09/2022,HED0328783,100,N,,N,20
Pendle Borough Council,Engineering & Special Projects,Premises Related Expense,Grounds : R & M : Day to Day : Routine,2101,A&G LANDSCAPES & GROUNDWORKS LIMITED,A0091675,29/09/2022,HED0328785,300,N,,N,60
Pendle Borough Council,Engineering & Special Projects,Premises Related Expense,Grounds : R & M : Day to Day : Routine,2101,A&G LANDSCAPES & GROUNDWORKS LIMITED,A0091675,29/09/2022,HED0328785,645,N,,N,N
Pendle Borough Council,Engineering & Special Projects,Premises Related Expense,Grounds : R & M : Day to Day : Routine,2101,A&G LANDSCAPES & GROUNDWORKS LIMITED,A0091675,29/09/2022,HED0328782,85,N,,N,17
Pendle Borough Council,Engineering & Special Projects,Premises Related Expense,Grounds : R & M : Day to Day : Routine,2101,A&G LANDSCAPES & GROUNDWORKS LIMITED,A0091675,29/09/2022,HED0328781,120,N,,N,24
Pendle Borough Council,Engineering & Special Projects,Premises Related Expense,Grounds : R & M : Day to Day : Routine,2101,A&G LANDSCAPES & GROUNDWORKS LIMITED,A0091675,29/09/2022,HED0328786,250,N,,N,50
Pendle Borough Council,Engineering & Special Projects,Premises Related Expense,Grounds : R & M : Day to Day : Routine,2101,A&G LANDSCAPES & GROUNDWORKS LIMITED,A0091675,29/09/2022,HED0328786,1394.5,N,,N,N
Pendle Borough Council,Environmental Health Services,Agency Staff,Emp : Agency Wages,1004,THE OYSTER PARTNERSHIP LIMITED,A0091781,15/09/2022,ENV0328470,1204,N,,N,N
Pendle Borough Council,Environmental Health Services,Agency Staff,Emp : Agency Wages,1004,THE OYSTER PARTNERSHIP LIMITED,A0091781,15/09/2022,ENV0328471,1366.88,N,,N,N
Pendle Borough Council,Environmental Health Services,Agency Staff,Emp : Agency Wages,1004,THE OYSTER PARTNERSHIP LIMITED,A0091781,22/09/2022,ENV0328654,1399.68,N,,N,N
Pendle Borough Council,Engineering & Special Projects,Agency Staff,Emp : Agency Wages,1004,THE OYSTER PARTNERSHIP LIMITED,A0091781,01/09/2022,HED0328208,1407.12,N,,N,N
Pendle Borough Council,Engineering & Special Projects,Agency Staff,Emp : Agency Wages,1004,THE OYSTER PARTNERSHIP LIMITED,A0091781,29/09/2022,HED0328811,1465.29,N,,N,N
Pendle Borough Council,Environmental Health Services,Agency Staff,Emp : Agency Wages,1004,THE OYSTER PARTNERSHIP LIMITED,A0091781,08/09/2022,ENV0328378,1487.16,N,,N,N
Pendle Borough Council,Environmental Health Services,Agency Staff,Emp : Agency Wages,1004,THE OYSTER PARTNERSHIP LIMITED,A0091781,08/09/2022,ENV0328377,1538.31,N,,N,N
Pendle Borough Council,Environmental Health Services,Agency Staff,Emp : Agency Wages,1004,THE OYSTER PARTNERSHIP LIMITED,A0091781,22/09/2022,ENV0328653,1542.94,N,,N,N
Pendle Borough Council,Engineering & Special Projects,Agency Staff,Emp : Agency Wages,1004,THE OYSTER PARTNERSHIP LIMITED,A0091781,29/09/2022,HED0328812,1564.15,N,,N,N
Pendle Borough Council,Engineering & Special Projects,Agency Staff,Emp : Agency Wages,1004,THE OYSTER PARTNERSHIP LIMITED,A0091781,01/09/2022,HED0328209,1586.13,N,,N,N
Pendle Borough Council,Environmental Health Services,Capital Costs,Capital : Salaries,CD13,G2 RECRUITMENT SOLUTIONS,A0091827,15/09/2022,ENV0328472,1080,N,,N,N
Pendle Borough Council,Environmental Health Services,Capital Costs,Capital : Salaries,CD13,G2 RECRUITMENT SOLUTIONS,A0091827,08/09/2022,ENV0328312,1332,N,,N,N
Pendle Borough Council,Environmental Health Services,Capital Costs,Capital : Salaries,CD13,G2 RECRUITMENT SOLUTIONS,A0091827,22/09/2022,ENV0328655,1332,N,,N,N
Pendle Borough Council,Engineering & Special Projects,Capital Costs,Capital : Salaries,CD13,G2 RECRUITMENT SOLUTIONS,A0091827,01/09/2022,HED0328210,1332,N,,N,N
Pendle Borough Council,Engineering & Special Projects,Capital Costs,Capital : Salaries,CD13,G2 RECRUITMENT SOLUTIONS,A0091827,29/09/2022,HED0328810,1332,N,,N,N
Pendle Borough Council,Parks & Recreation Services,Premises Related Expense,#N/A,2106,J RAWSON & SONS,A0091873,01/09/2022,PCO0328151,5758.34,N,,N,N
Pendle Borough Council,Engineering & Special Projects,Capital Costs,Ren Grant : 1996 Act,CH22,CLEGG CONSTRUCTION UK,A0091885,29/09/2022,HED0328815,5170,N,,N,N
Pendle Borough Council,Engineering & Special Projects,Capital Costs,Ren Grant : 1996 Act,CH22,CLEGG CONSTRUCTION UK,A0091885,29/09/2022,HED0328816,5262,N,,N,N
Pendle Borough Council,Environmental Health Services,Capital Costs,Ren Grant : 1996 Act,CH22,CLEGG CONSTRUCTION UK,A0091885,08/09/2022,ENV0328373,6827,N,,N,N
Pendle Borough Council,Environmental Health Services,Capital Costs,Ren Grant : 1996 Act,CH22,CLEGG CONSTRUCTION UK,A0091885,08/09/2022,ENV0328372,9119,N,,N,N
Pendle Borough Council,Engineering & Special Projects,Capital Costs,Ren Grant : 1996 Act,CH22,DYNAMIC PLUMBING AND HEATING,A0091941,29/09/2022,HED0328828,8638,N,,N,N
Pendle Borough Council,Environmental Health Services,Capital Costs,Ren Grant : 1996 Act,CH22,DYNAMIC PLUMBING AND HEATING,A0091941,08/09/2022,ENV0328374,10386,N,,N,N
Pendle Borough Council,Environmental Health Services,Capital Costs,Ren Grant : 1996 Act,CH22,DYNAMIC PLUMBING AND HEATING,A0091941,15/09/2022,ENV0328468,10854,N,,N,N
Pendle Borough Council,Operational Services,Indirect Employee Expenses,Lone Worker Monitoring Service,1270,PICK PROTECTION,A0091948,08/09/2022,OPS0328390,4507.56,N,,N,N
Pendle Borough Council,Chief Executives Policy Unit,Supplies and Services,Other Expenses,4705,PENDLE FOOD FOR ALL FOOD CLUB,A0091966,15/09/2022,COR0328467,2100,N,,N,N
Pendle Borough Council,Planning & Building Control,Supplies and Services,EFM Materials,4004,REVIEW SYSTEMS DIGITAL SIGNAGE LIMITED,A0091985,29/09/2022,PBC0328833,180,N,,N,N
Pendle Borough Council,Operational Services,,Stock : Purchases,PJ01,SMI GROUP UK,A0091999,08/09/2022,OPS4006601,-9.84,N,,N,N
Pendle Borough Council,Operational Services,,Stock : Purchases,PJ01,SMI GROUP UK,A0091999,29/09/2022,OPS0328744,55.6,N,,N,N
Pendle Borough Council,Operational Services,,Stock : Purchases,PJ01,SMI GROUP UK,A0091999,01/09/2022,OPS0328244,58.78,N,,N,N
Pendle Borough Council,Operational Services,,Stock : Purchases,PJ01,SMI GROUP UK,A0091999,01/09/2022,OPS0328244,120,N,,N,N
Pendle Borough Council,Operational Services,,Stock : Purchases,PJ01,SMI GROUP UK,A0091999,01/09/2022,OPS0328239,144,N,,N,N
Pendle Borough Council,Operational Services,,Stock : Purchases,PJ01,SMI GROUP UK,A0091999,08/09/2022,OPS0328391,370.32,N,,N,N
Pendle Borough Council,Engineering & Special Projects,Premises Related Expense,Bldgs : R & M : Abnormal,2002,BLUEBELL NORTH WEST LIMITED,A0092759,01/09/2022,HED0328213,4016,N,,N,N
Pendle Borough Council,Engineering & Special Projects,Supplies and Services,Subsidised Training,4721,QM CATERING LTD,A0093265,29/09/2022,HED0328820,235,N,,N,N
Pendle Borough Council,Engineering & Special Projects,Supplies and Services,Subsidised Training,4721,QM CATERING LTD,A0093265,29/09/2022,HED0328821,6415,N,,N,N
Pendle Borough Council,Engineering & Special Projects,Supplies and Services,Children`s holiday activities,4716,SMARTYPANTS EXCLUSIVE CHILDCARE,A0093288,01/09/2022,HED0328216,10080,N,,N,N
Pendle Borough Council,Engineering & Special Projects,Supplies and Services,Other Expenses,4705,FRED HAMER FUNERAL SERVICE NELSON,A0093306,15/09/2022,HED0328558,995,N,,N,N
Pendle Borough Council,Parks & Recreation Services,Premises Related Expense,Grounds : R & M : Gds Maint ,2103,IDVERDE,A0093945,01/09/2022,PCO0328247,17940.95,N,,N,N
Pendle Borough Council,Parks & Recreation Services,Supplies and Services,Expenditure : Materials,0002,TURFIX PITCH SOLUTIONS,A0094206,01/09/2022,PCO0328249,150,N,,N,N
Pendle Borough Council,Parks & Recreation Services,Supplies and Services,Expenditure : Materials,0002,TURFIX PITCH SOLUTIONS,A0094206,01/09/2022,PCO0328268,160,N,,N,N
Pendle Borough Council,Parks & Recreation Services,Supplies and Services,Expenditure : Materials,0002,TURFIX PITCH SOLUTIONS,A0094206,01/09/2022,PCO0328249,210,N,,N,N
Pendle Borough Council,Parks & Recreation Services,Supplies and Services,Expenditure : Materials,0002,TURFIX PITCH SOLUTIONS,A0094206,01/09/2022,PCO0328268,240,N,,N,N
Pendle Borough Council,Parks & Recreation Services,Supplies and Services,Expenditure : Materials,0002,TURFIX PITCH SOLUTIONS,A0094206,01/09/2022,PCO0328249,450,N,,N,N
Pendle Borough Council,Parks & Recreation Services,Supplies and Services,Expenditure : Materials,0002,TURFIX PITCH SOLUTIONS,A0094206,01/09/2022,PCO0328249,640,N,,N,N
Pendle Borough Council,Parks & Recreation Services,Supplies and Services,Expenditure : Materials,0002,TURFIX PITCH SOLUTIONS,A0094206,01/09/2022,PCO0328249,855,N,,N,N
Pendle Borough Council,Parks & Recreation Services,Premises Related Expense,Grounds : R & M : Day to Day : Routine,2101,TURFIX PITCH SOLUTIONS,A0094206,29/09/2022,PCO0328735,170,N,,N,N
Pendle Borough Council,Revenues Services,Supplies and Services,Consultants Fees,4401,MARSTON (HOLDINGS) LIMITED,A0094273,15/09/2022,TRE0327728,46.89,N,,N,N
Pendle Borough Council,Revenues Services,Supplies and Services,Consultants Fees,4401,MARSTON (HOLDINGS) LIMITED,A0094273,15/09/2022,TRE0328585,49.59,N,,N,N
Pendle Borough Council,Revenues Services,Supplies and Services,Consultants Fees,4401,MARSTON (HOLDINGS) LIMITED,A0094273,15/09/2022,TRE0327729,54.99,N,,N,N
Pendle Borough Council,Revenues Services,Supplies and Services,Consultants Fees,4401,MARSTON (HOLDINGS) LIMITED,A0094273,15/09/2022,TRE0328584,85.59,N,,N,N
Pendle Borough Council,Engineering & Special Projects,Supplies and Services,LCC Levy (Admins Costs),4419,MARSTON (HOLDINGS) LIMITED,A0094273,08/09/2022,HED0328395,-75,N,,N,N
Pendle Borough Council,Engineering & Special Projects,Supplies and Services,LCC Levy (Admins Costs),4419,MARSTON (HOLDINGS) LIMITED,A0094273,08/09/2022,HED0328395,75,N,,N,N
Pendle Borough Council,Financial Services,Supplies and Services,Consultants Fees,4401,CDER GROUP LIMITED,A0094274,08/09/2022,AAS0328454,55,N,,N,N
Pendle Borough Council,Financial Services,Supplies and Services,Consultants Fees,4401,CDER GROUP LIMITED,A0094274,08/09/2022,AAS0328455,55,N,,N,N
Pendle Borough Council,Financial Services,Supplies and Services,Consultants Fees,4401,CDER GROUP LIMITED,A0094274,22/09/2022,AAS0328736,110,N,,N,N
Pendle Borough Council,Engineering & Special Projects,Capital Costs,Ren Grant : 1996 Act,CH22,SOUTHFIELD CONSTRUCTION,A0094294,29/09/2022,HED0328827,5077,N,,N,N
Pendle Borough Council,Environmental Health Services,Capital Costs,Ren Grant : 1996 Act,CH22,SOUTHFIELD CONSTRUCTION,A0094294,08/09/2022,ENV0328376,8545,N,,N,N
Pendle Borough Council,Engineering & Special Projects,Capital Costs,Ren Grant : 1996 Act,CH22,SOUTHFIELD CONSTRUCTION,A0094294,29/09/2022,HED0328817,9061,N,,N,N
Pendle Borough Council,Financial Services,Supplies and Services,Consultants Fees,4401,CASTLEFIELD RECRUITMENT LIMITED,A0094486,08/09/2022,AAS0328456,556.88,N,,N,N
Pendle Borough Council,Financial Services,Supplies and Services,Consultants Fees,4401,CASTLEFIELD RECRUITMENT LIMITED,A0094486,08/09/2022,AAS0328453,1670.64,N,,N,N
Pendle Borough Council,Financial Services,Supplies and Services,Consultants Fees,4401,CASTLEFIELD RECRUITMENT LIMITED,A0094486,08/09/2022,AAS0328457,2227.52,N,,N,N
Pendle Borough Council,Engineering & Special Projects,Supplies and Services,Other Expenses,4705,REDACT - PERSONAL DATA,A0094529,29/09/2022,HED0328751,680,N,,N,N
Pendle Borough Council,Chief Executives Policy Unit,Supplies and Services,Other Expenses,4705,REDACT - PERSONAL DATA,A0094602,15/09/2022,COR0328460,2100,N,,N,N
Pendle Borough Council,Parks & Recreation Services,Premises Related Expense,Grounds : R & M : Day to Day : Routine,2101,MERRITT & FRYERS LTD,A0095575,29/09/2022,PCO0328724,12.28,N,,N,N
Pendle Borough Council,Parks & Recreation Services,Premises Related Expense,Grounds : R & M : Day to Day : Routine,2101,MERRITT & FRYERS LTD,A0095575,29/09/2022,PCO0328725,43.72,N,,N,N
Pendle Borough Council,Parks & Recreation Services,Supplies and Services,Protective Clothing,4201,MERRITT & FRYERS LTD,A0095575,08/09/2022,PCO0328413,10.3,N,,N,N
Pendle Borough Council,Economic Development & Tourism,Capital Costs,Capital : Payments,CD14,ONE DESIGN ARCHITECTS LTD,A0095577,15/09/2022,REG0328549,2515,N,,N,N
Pendle Borough Council,Property Services,Supplies and Services,Publicity & advertisement,4704,LOOP PUBLISHING LTD,A0095691,08/09/2022,EST0328426,175,N,,N,N
Pendle Borough Council,Parks & Recreation Services,Premises Related Expense,Grounds : R & M : Day to Day : Routine,2101,M W ENVIRONMENTAL,A0095862,15/09/2022,PCO0328539,333.66,N,,N,N
Pendle Borough Council,Parks & Recreation Services,Premises Related Expense,Grounds : R & M : Day to Day : Routine,2101,M W ENVIRONMENTAL,A0095862,29/09/2022,PCO0328726,198.99,N,,N,N
Pendle Borough Council,Parks & Recreation Services,Premises Related Expense,Grounds : R & M : Day to Day : Routine,2101,M W ENVIRONMENTAL,A0095862,29/09/2022,PCO0328762,242.6,N,,N,N
Pendle Borough Council,Parks & Recreation Services,Premises Related Expense,Grounds : R & M : Day to Day : Routine,2101,M W ENVIRONMENTAL,A0095862,29/09/2022,PCO0328763,353.57,N,,N,N
Pendle Borough Council,Parks & Recreation Services,Premises Related Expense,Grounds : R & M : Day to Day : Routine,2101,M W ENVIRONMENTAL,A0095862,08/09/2022,PCO0328432,355.22,N,,N,N
Pendle Borough Council,Parks & Recreation Services,Premises Related Expense,Grounds : R & M : Day to Day : Routine,2101,M W ENVIRONMENTAL,A0095862,01/09/2022,PCO0328280,93.3,N,,N,N
Pendle Borough Council,Parks & Recreation Services,Premises Related Expense,Grounds : R & M : Day to Day : Routine,2101,M W ENVIRONMENTAL,A0095862,29/09/2022,PCO0328726,198.99,N,,N,N
Pendle Borough Council,Engineering & Special Projects,Capital Costs,Capital : Payments,CD14,BREWERS CONTRACTORS,A0096143,29/09/2022,HED0328787,94436.42,N,,N,N
Pendle Borough Council,Engineering & Special Projects,Capital Costs,Capital : Payments,CD14,CANWELL LTD,A0096146,01/09/2022,HED0328262,8856.85,N,,N,N
Pendle Borough Council,Engineering & Special Projects,Capital Costs,Capital : Payments,CD14,CANWELL LTD,A0096146,01/09/2022,HED0328261,9740,N,,N,N
Pendle Borough Council,Chief Executives Policy Unit,Supplies and Services,Subsidised Training,4721,COMMUNITY ARTS BY ZK,A0096410,08/09/2022,COR0328313,14000,N,,N,N
Pendle Borough Council,Chief Executives Policy Unit,Supplies and Services,Subsidised Training,4721,FUNDA,A0096411,15/09/2022,COR0328547,2240,N,,N,N
Pendle Borough Council,Chief Executives Policy Unit,Supplies and Services,Subsidised Training,4721,HARRINGTONS LEARNING CENTRE,A0096412,08/09/2022,COR0328370,6881.13,N,,N,N
Pendle Borough Council,Chief Executives Policy Unit,Supplies and Services,Subsidised Training,4721,FUN-ATICS LTD,A0096414,22/09/2022,COR0328684,1764,N,,N,N
Pendle Borough Council,Engineering & Special Projects,Transfer Payments,Accommodation ,6103,REGENT GUEST HOUSE,A0096417,22/09/2022,HED0328688,1020,N,,N,N
Pendle Borough Council,Engineering & Special Projects,Transfer Payments,Accommodation ,6103,REGENT GUEST HOUSE,A0096417,22/09/2022,HED0328686,2100,N,,N,N
Pendle Borough Council,Engineering & Special Projects,Transfer Payments,Accommodation ,6103,REGENT GUEST HOUSE,A0096417,22/09/2022,HED0328687,2100,N,,N,N
Pendle Borough Council,Property Services,Premises Related Expense,Gas,2202,E.ON NEXT ENERGY LIMITED,A0096428,15/09/2022,EST0328642,9.3,N,,N,N
Pendle Borough Council,Property Services,Premises Related Expense,Electricity,2203,E.ON NEXT ENERGY LIMITED,A0096428,15/09/2022,EST0328636,4.64,N,,N,N
Pendle Borough Council,Property Services,Premises Related Expense,Electricity,2203,E.ON NEXT ENERGY LIMITED,A0096428,15/09/2022,EST0328626,19.22,N,,N,N
Pendle Borough Council,Property Services,Premises Related Expense,Electricity,2203,E.ON NEXT ENERGY LIMITED,A0096428,15/09/2022,EST0328639,4.55,N,,N,N
Pendle Borough Council,Property Services,Premises Related Expense,Electricity,2203,E.ON NEXT ENERGY LIMITED,A0096428,15/09/2022,EST0328632,14.79,N,,N,N
Pendle Borough Council,Property Services,Premises Related Expense,Electricity,2203,E.ON NEXT ENERGY LIMITED,A0096428,15/09/2022,EST0328635,17.42,N,,N,N
Pendle Borough Council,Property Services,Premises Related Expense,Electricity,2203,E.ON NEXT ENERGY LIMITED,A0096428,15/09/2022,EST0328634,20.39,N,,N,N
Pendle Borough Council,Property Services,Premises Related Expense,Electricity,2203,E.ON NEXT ENERGY LIMITED,A0096428,15/09/2022,EST0328615,48.52,N,,N,N
Pendle Borough Council,Property Services,Premises Related Expense,Electricity,2203,E.ON NEXT ENERGY LIMITED,A0096428,15/09/2022,EST0328648,356.39,N,,N,N
Pendle Borough Council,Property Services,Premises Related Expense,Electricity,2203,E.ON NEXT ENERGY LIMITED,A0096428,15/09/2022,EST0328622,4.34,N,,N,N
Pendle Borough Council,Property Services,Premises Related Expense,Electricity,2203,E.ON NEXT ENERGY LIMITED,A0096428,15/09/2022,EST0328614,4.34,N,,N,N
Pendle Borough Council,Property Services,Premises Related Expense,Electricity,2203,E.ON NEXT ENERGY LIMITED,A0096428,15/09/2022,EST0328616,4.34,N,,N,N
Pendle Borough Council,Property Services,Premises Related Expense,Electricity,2203,E.ON NEXT ENERGY LIMITED,A0096428,15/09/2022,EST0328623,4.34,N,,N,N
Pendle Borough Council,Property Services,Premises Related Expense,Electricity,2203,E.ON NEXT ENERGY LIMITED,A0096428,15/09/2022,EST0328624,4.34,N,,N,N
Pendle Borough Council,Property Services,Premises Related Expense,Electricity,2203,E.ON NEXT ENERGY LIMITED,A0096428,15/09/2022,EST0328641,17.94,N,,N,N
Pendle Borough Council,Property Services,Premises Related Expense,Electricity,2203,E.ON NEXT ENERGY LIMITED,A0096428,15/09/2022,EST0328638,37.73,N,,N,N
Pendle Borough Council,Engineering & Special Projects,Supplies and Services,Children`s holiday activities,4716,SPORTSCOOL LTD,A0096429,01/09/2022,HED0328215,37107,N,,N,N
Pendle Borough Council,Parks & Recreation Services,Supplies and Services,Other Expenses,4705,COLYER REPROPOINT,A0096484,08/09/2022,PCO0328410,394,N,,N,N
Pendle Borough Council,Parks & Recreation Services,Premises Related Expense,Bldgs : R & M : Day To Day,2001,JMB SERVICES,A0096485,29/09/2022,PCO0328721,70,N,,N,N
Pendle Borough Council,Parks & Recreation Services,Premises Related Expense,Grounds : R & M : Day to Day : Routine,2101,JMB SERVICES,A0096485,29/09/2022,PCO0328722,1200,N,,N,N
Pendle Borough Council,Parks & Recreation Services,Capital Costs,Capital : Payments,CD14,JCB PRICE & SON LTD,A0096491,01/09/2022,PCO0328157,4200,N,,N,N
Pendle Borough Council,Engineering & Special Projects,Supplies and Services,Consultants Fees,4401,DWF LAW LLP,A0096499,15/09/2022,HED0328518,4271.5,N,,N,N
Pendle Borough Council,Chief Executives Policy Unit,Supplies and Services,Other Expenses,4705,CURRY ON THE STREET,A0096527,15/09/2022,COR0328466,2100,N,,N,N
Pendle Borough Council,Financial Services,Supplies and Services,Consultants Fees,4401,MBSP CONSULTANCY LTD,A0096552,15/09/2022,AAS0328652,8400,N,,N,N
Pendle Borough Council,Engineering & Special Projects,Premises Related Expense,Grounds : R & M : Day to Day : Routine,2101,BM Complete Developments Ltd,A0096572,15/09/2022,HED0328437,550,N,,N,N
Pendle Borough Council,Financial Services,Premises Related Expense,Service Charge,2702,B1 YOUR SPACE LTD,A0096763,15/09/2022,AAS0328651,4750,N,,N,N
Pendle Borough Council,Information Services,Supplies and Services,EFM : Other Equipment,4003,BCN GROUP LTD,A0096766,22/09/2022,ITS0328701,10,N,,N,N
Pendle Borough Council,Information Services,Supplies and Services,EFM : Other Equipment,4003,BCN GROUP LTD,A0096766,22/09/2022,ITS0328701,216.53,N,,N,N
Pendle Borough Council,Information Services,Capital Costs,Capital : Payments,CD14,BCN GROUP LTD,A0096766,22/09/2022,ITS0328700,10,N,,N,N
Pendle Borough Council,Information Services,Capital Costs,Capital : Payments,CD14,BCN GROUP LTD,A0096766,22/09/2022,ITS0328700,143.16,N,,N,N
Pendle Borough Council,Engineering & Special Projects,Capital Costs,Capital : Payments,CD14,EA PAYMENTS,A0096791,29/09/2022,HED0328780,271,N,,N,N
Pendle Borough Council,Engineering & Special Projects,Capital Costs,Capital : Payments,CD14,EA PAYMENTS,A0096791,09/09/2022,HED0328441,353.5,N,,N,N
Pendle Borough Council,Financial Services,Supplies and Services,Grant Funding,4737,REDACT - PERSONAL DATA,A0096803,09/09/2022,AAS0328477,350,N,,N,N
Pendle Borough Council,Financial Services,Supplies and Services,Grant Funding,4737,REDACT - PERSONAL DATA,A0096804,09/09/2022,AAS0328478,350,N,,N,N
Pendle Borough Council,Financial Services,Supplies and Services,Grant Funding,4737,REDACT - PERSONAL DATA,A0096805,09/09/2022,AAS0328479,350,N,,N,N
Pendle Borough Council,Financial Services,Supplies and Services,Grant Funding,4737,REDACT - PERSONAL DATA,A0096806,09/09/2022,AAS0328480,350,N,,N,N
Pendle Borough Council,Financial Services,Supplies and Services,Grant Funding,4737,REDACT - PERSONAL DATA,A0096807,09/09/2022,AAS0328481,350,N,,N,N
Pendle Borough Council,Financial Services,Supplies and Services,Grant Funding,4737,REDACT - PERSONAL DATA,A0096808,09/09/2022,AAS0328485,350,N,,N,N
Pendle Borough Council,Financial Services,Supplies and Services,Grant Funding,4737,REDACT - PERSONAL DATA,A0096810,09/09/2022,AAS0328489,350,N,,N,N
Pendle Borough Council,Financial Services,Supplies and Services,Grant Funding,4737,REDACT - PERSONAL DATA,A0096811,09/09/2022,AAS0328490,350,N,,N,N
Pendle Borough Council,Financial Services,Supplies and Services,Grant Funding,4737,REDACT - PERSONAL DATA,A0096819,09/09/2022,AAS0328491,350,N,,N,N
Pendle Borough Council,Financial Services,Supplies and Services,Grant Funding,4737,REDACT - PERSONAL DATA,A0096823,09/09/2022,AAS0328483,350,N,,N,N
Pendle Borough Council,Property Services,Premises Related Expense,Bldgs : R & M : Day To Day,2001,INDUSTRIAL DOOR ENGINEERING,A0096826,29/09/2022,EST0328809,890,N,,N,N
Pendle Borough Council,Operational Services,Supplies and Services,Sub-Contractors,4007,WHITLEY BROOK PET CREMATORIUM,A0096827,15/09/2022,OPS0328556,45,N,,N,N
Pendle Borough Council,Financial Services,Supplies and Services,Grant Funding,4737,REDACT - PERSONAL DATA,A0096834,09/09/2022,AAS0328482,350,N,,N,N
Pendle Borough Council,Financial Services,Supplies and Services,Grant Funding,4737,REDACT - PERSONAL DATA,A0096837,09/09/2022,AAS0328486,350,N,,N,N
Pendle Borough Council,Financial Services,Supplies and Services,Grant Funding,4737,REDACT - PERSONAL DATA,A0096837,09/09/2022,AAS0328487,350,N,,N,N
Pendle Borough Council,Financial Services,Supplies and Services,Grant Funding,4737,REDACT - PERSONAL DATA,A0096837,09/09/2022,AAS0328488,350,N,,N,N
Pendle Borough Council,Parks & Recreation Services,Transport Related Expense,Tprt : Repairs : General,3105,JPN AUTOPARTS,A0096840,29/09/2022,PCO0328760,8.48,N,,N,N
Pendle Borough Council,Financial Services,Supplies and Services,Grant Funding,4737,REDACT - PERSONAL DATA,A0096841,09/09/2022,AAS0328492,350,N,,N,N
Pendle Borough Council,Financial Services,Supplies and Services,Grant Funding,4737,REDACT - PERSONAL DATA,A0096841,09/09/2022,AAS0328493,350,N,,N,N
Pendle Borough Council,Financial Services,Supplies and Services,Grant Funding,4737,POST OFFICE LTD,A0096844,22/09/2022,AAS0328738,18.8,N,,N,N
Pendle Borough Council,Financial Services,Supplies and Services,Grant Funding,4737,POST OFFICE LTD,A0096844,12/09/2022,AAS0328878,13000,N,,N,N
Pendle Borough Council,Financial Services,Supplies and Services,Grant Funding,4737,REDACT - PERSONAL DATA,A0096858,09/09/2022,AAS0328494,350,N,,N,N
Pendle Borough Council,Financial Services,Supplies and Services,Grant Funding,4737,REDACT - PERSONAL DATA,A0096858,09/09/2022,AAS0328495,350,N,,N,N
Pendle Borough Council,Engineering & Special Projects,Supplies and Services,Mayoral Expenses,4614,REDACT - PERSONAL DATA,A0096859,01/09/2022,HED0328282,450,N,,N,N
Pendle Borough Council,Human Resources,Indirect Employee Expenses,Long Service Awards,1235,REDACT - PERSONAL DATA,A0096860,08/09/2022,PER0328364,446,N,,N,N
Pendle Borough Council,Engineering & Special Projects,Supplies and Services,Other Expenses,4705,REDACT - PERSONAL DATA,A0096861,08/09/2022,HED0328365,600,N,,N,N
Pendle Borough Council,Financial Services,Supplies and Services,Grant Funding,4737,REDACT - PERSONAL DATA,A0096862,09/09/2022,AAS0328496,350,N,,N,N
Pendle Borough Council,Financial Services,Supplies and Services,Grant Funding,4737,REDACT - PERSONAL DATA,A0096862,09/09/2022,AAS0328497,350,N,,N,N
Pendle Borough Council,Financial Services,Supplies and Services,Grant Funding,4737,REDACT - PERSONAL DATA,A0096862,09/09/2022,AAS0328498,350,N,,N,N
Pendle Borough Council,Financial Services,Supplies and Services,Grant Funding,4737,REDACT - PERSONAL DATA,A0096863,09/09/2022,AAS0328484,350,N,,N,N
Pendle Borough Council,Chief Executives Policy Unit,Supplies and Services,Subsidised Training,4721,SPORTING NRG LIMITED,A0096865,15/09/2022,COR0328548,1200,N,,N,N
Pendle Borough Council,Financial Services,Supplies and Services,Grant Funding,4737,REDACT - PERSONAL DATA,A0096866,09/09/2022,AAS0328501,350,N,,N,N
Pendle Borough Council,Financial Services,Supplies and Services,Grant Funding,4737,REDACT - PERSONAL DATA,A0096866,09/09/2022,AAS0328502,350,N,,N,N
Pendle Borough Council,Financial Services,Supplies and Services,Grant Funding,4737,REDACT - PERSONAL DATA,A0096866,09/09/2022,AAS0328503,350,N,,N,N
Pendle Borough Council,Financial Services,Supplies and Services,Grant Funding,4737,REDACT - PERSONAL DATA,A0096867,09/09/2022,AAS0328499,350,N,,N,N
Pendle Borough Council,Financial Services,Supplies and Services,Grant Funding,4737,REDACT - PERSONAL DATA,A0096867,09/09/2022,AAS0328500,350,N,,N,N
Pendle Borough Council,Planning & Building Control,,Fees Income : Non-VATable,9302,REDACT - PERSONAL DATA,A0096868,15/09/2022,PBC0328543,462,N,,N,N
Pendle Borough Council,Planning & Building Control,Supplies and Services,EFM : Other Equipment,4003,TAMESIDE METROPOLITAN BOROUGH,A0096870,15/09/2022,PBC0328546,933.33,N,,N,N
Pendle Borough Council,Engineering & Special Projects,Supplies and Services,Other Expenses,4705,REDACT - PERSONAL DATA,A0096871,15/09/2022,HED0328583,700,N,,N,N
Pendle Borough Council,Financial Services,Supplies and Services,Other Expenses,4705,SAINSBURY`S SUPERMARKETS LIMITED,A0096877,22/09/2022,AAS0328739,1398.18,N,,N,N
Pendle Borough Council,Financial Services,,Paid in the Year,pd03,SAINSBURY`S SUPERMARKETS LIMITED,A0096877,22/09/2022,AAS0328739,22812.94,N,,N,N
Pendle Borough Council,Human Resources,Indirect Employee Expenses,Long Service Awards,1235,ARRTP LIMITED,A0096881,29/09/2022,PER0328750,497.18,N,,N,N
Pendle Borough Council,Engineering & Special Projects,Supplies and Services,Other Expenses,4705,REDACT - PERSONAL DATA,A0096882,29/09/2022,HED0328822,900,N,,N,N
Pendle Borough Council,Engineering & Special Projects,Supplies and Services,Other Expenses,4705,HOUSING OMBUDSMAN SERVICE,A0096885,29/09/2022,HED0328772,13.8,N,,N,N
